{"text_format":"1","workbook":"xlsx","n_sheets":3,"sheets":["Accueil","Feuil1","WebQuery"],"not_rendered":{"charts":0,"images":8,"macros":1,"external_links":0,"defined_names":0,"comments":0,"pivot_tables":0},"unopened":[],"bounds":{"document_bytes":16777216,"sheet_cells":100000,"rows_first":2000,"rows_last":500,"rows_between":2000,"halvings":0,"cell_chars":16384,"cell_head_chars":4096},"cells_cut":0,"cells_raw":0,"read":"whole","date_system":"1900"}

{"sheet":"Accueil","index":0,"n_rows":218,"n_cols":40,"rows_kept":218,"cut":false,"hidden":false,"merged":[[9,1,9,13],[9,15,9,19],[11,3,11,10],[13,3,13,10],[14,3,14,10],[11,11,11,16],[12,3,12,10],[18,11,18,16],[19,11,19,16],[14,11,14,16],[15,11,15,16],[16,11,16,16],[17,11,17,16],[12,11,12,16],[13,11,13,16],[15,3,15,10],[16,3,16,10],[17,3,17,10],[18,3,18,10],[19,3,19,10],[20,11,20,16],[21,11,21,16],[37,2,37,6],[38,2,38,6],[21,3,21,10],[43,2,43,6],[44,2,44,6],[45,2,45,6],[46,2,46,6],[20,3,20,10],[51,1,51,19],[54,2,54,6],[55,2,55,6],[56,2,56,6],[57,2,57,6],[39,2,39,6],[25,1,25,19],[40,2,40,6],[41,2,41,6],[42,2,42,6],[29,2,29,6],[30,2,30,6],[31,2,31,6],[32,2,32,6],[33,2,33,6],[34,2,34,6],[35,2,35,6],[36,2,36,6],[28,2,28,6],[47,2,47,6],[63,2,63,6],[64,2,64,6],[65,2,65,6],[66,2,66,6],[67,2,67,6],[58,2,58,6],[59,2,59,6],[60,2,60,6],[61,2,61,6],[62,2,62,6],[73,2,73,6],[77,1,77,19],[80,2,80,6],[81,2,81,6],[82,2,82,6],[68,2,68,6],[69,2,69,6],[70,2,70,6],[71,2,71,6],[72,2,72,6],[88,2,88,6],[89,2,89,6],[90,2,90,6],[91,2,91,6],[92,2,92,6],[83,2,83,6],[84,2,84,6],[85,2,85,6],[86,2,86,6],[87,2,87,6],[98,2,98,6],[99,2,99,6],[103,1,103,19],[106,2,106,6],[107,2,107,6],[93,2,93,6],[94,2,94,6],[95,2,95,6],[96,2,96,6],[97,2,97,6],[113,2,113,6],[114,2,114,6],[115,2,115,6],[116,2,116,6],[117,2,117,6],[108,2,108,6],[109,2,109,6],[110,2,110,6],[111,2,111,6],[112,2,112,6],[123,2,123,6],[124,2,124,6],[125,2,125,6],[129,1,129,19],[132,2,132,6],[118,2,118,6],[119,2,119,6],[120,2,120,6],[121,2,121,6],[122,2,122,6],[138,2,138,6],[139,2,139,6],[140,2,140,6],[141,2,141,6],[142,2,142,6],[133,2,133,6],[134,2,134,6],[135,2,135,6],[136,2,136,6],[137,2,137,6],[148,2,148,6],[149,2,149,6],[150,2,150,6],[151,2,151,6],[155,1,155,19],[143,2,143,6],[144,2,144,6],[145,2,145,6],[146,2,146,6],[147,2,147,6],[163,2,163,6],[164,2,164,6],[165,2,165,6],[166,2,166,6],[167,2,167,6],[158,2,158,6],[159,2,159,6],[160,2,160,6],[161,2,161,6],[162,2,162,6],[173,2,173,6],[174,2,174,6],[175,2,175,6],[176,2,176,6],[177,2,177,6],[168,2,168,6],[169,2,169,6],[170,2,170,6],[171,2,171,6],[172,2,172,6],[188,2,188,6],[189,2,189,6],[190,2,190,6],[191,2,191,6],[192,2,192,6],[181,1,181,19],[184,2,184,6],[185,2,185,6],[186,2,186,6],[187,2,187,6],[198,2,198,6],[199,2,199,6],[200,2,200,6],[201,2,201,6],[202,2,202,6],[193,2,193,6],[194,2,194,6],[195,2,195,6],[196,2,196,6],[197,2,197,6],[203,2,203,6],[207,1,207,19],[210,2,210,6],[211,2,211,6],[212,2,212,6],[213,2,213,6],[214,2,214,6],[215,2,215,6],[216,2,216,6],[226,2,226,6],[227,2,227,6],[228,2,228,6],[229,2,229,6],[217,2,217,6],[218,2,218,6],[219,2,219,6],[220,2,220,6],[221,2,221,6],[222,2,222,6],[223,2,223,6],[224,2,224,6],[225,2,225,6]]}
[]
[null,1]
[]
[]
[]
[]
[]
[]
[]
[null,"AUTEUIL - Réunion 1 - Dimanche 27 Novembre 2016"]
[]
[null,"Courses","Disc.","Nom",null,null,null,null,null,null,null,"Description",null,null,null,null,null,"Départ",null,"PMU/PMH"]
[null,"Course 1","Obs","PRIX LE GOURZY",null,null,null,null,null,null,null,"Haies - A Réclamer - 3 ans - 3500 mètres",null,null,null,null,null,"12h27",null,"PMU",null,null,null,null,null,null,null,null,{"$f":"LEFT(B25,SEARCH(\"Euros\",B25)-6)*1*1000","v":{"$error":"#VALUE!"}}]
[null,"Course 2","Obs","PRIX FRANCOIS DE PONCINS",null,null,null,null,null,null,null,"Haies - Listed - 4 ans - 3600 mètres",null,null,null,null,null,"13h05",null,"PMU",null,null,null,null,null,null,null,null,{"$f":"LEFT(L14,SEARCH(\"Euros\",L14)-6)*1*1000","v":{"$error":"#VALUE!"}}]
[null,"Course 3","Obs","PRIX MORGEX",null,null,null,null,null,null,null,"Steeple - Groupe 3 - 4 ans - 4300 mètres",null,null,null,null,null,"13h35",null,"PMU",null,null,null,null,null,null,null,null,{"$f":"LEFT(L15,SEARCH(\"Euros\",L15)-6)*1*1000","v":{"$error":"#VALUE!"}}]
[null,"Course 4","Obs","PRIX FIFRELET",null,null,null,null,null,null,null,"Haies - Handicap Listed - 3 ans - 3600 mètres - Ref: +07",null,null,null,null,null,"14h05",null,"PMU",null,null,null,null,null,null,null,null,{"$error":"#VALUE!"}]
[null,"Course 5","Obs","PRIX GEORGES COURTOIS",null,null,null,null,null,null,null,"Steeple - Groupe 2 - 5 ans et Plus - 4400 mètres",null,null,null,null,null,"14h35",null,"PMU",null,null,null,null,null,null,null,null,{"$error":"#VALUE!"}]
[null,"Course 6","Obs","PRIX LE PARISIEN (PRIX JEAN LAUMAIN)",null,null,null,null,null,null,null,"Steeple - Handicap - 5 ans et Plus - 4400 mètres - Ref: +07",null,null,null,null,null,"15h15","Q+","PMU",null,null,null,null,null,null,null,null,{"$error":"#VALUE!"}]
[null,"Course 7","Obs","PRIX ANDRE MICHEL",null,null,null,null,null,null,null,"Haies - femelles - Groupe 3 - 4 ans et 5 - 3600 mètres",null,null,null,null,null,"15h50",null,"PMU",null,null,null,null,null,null,null,null,{"$error":"#VALUE!"}]
[null,"Course 8","Obs","PRIX NUPSALA",null,null,null,null,null,null,null,"Steeple - 4 ans - 4300 mètres",null,null,null,null,null,"16h23",null,"PMU",null,null,null,null,null,null,null,null,{"$error":"#VALUE!"}]
[null,null,null,null,null,null,null,null,null,null,null,null,null,null,null,null,null,null,null,null,null,null,null,null,null,null,null,null,{"$error":"#VALUE!"}]
[null,null,null,null,null,null,null,null,null,null,null,null,null,null,null,null,null,null,null,null,null,null,null,null,null,null,null,null,{"$error":"#VALUE!"}]
[]
[null,"Course n°1 - PRIX LE GOURZY"]
[null,"Haies - A Réclamer - 3 ans - 3500 mètres - départ vers 12h27"]
[null,"A RECLAMER , HAIES, 3.500 mètres- Pour tous poulains et pouliches de 3 ans, mis à réclamer au minimum pour 12.000, avec prix de réclamation supérieurs de 2.000 en 2.000. Poids : 68 k. Surcharges accumulées \r\n: 1 k. par 2.000 pour les prix de réclamation supérieurs à 12.000. En outre, tout poulain ou pouliche ayant, en courses de haies, reçu une allocation de 10.000 portera 2 k. plusieurs allocations de 10.000, \r\n4 k. Les Apprentis, Jeunes Jockeys et Jockeys n'ayant pas gagné quarante courses recevront 4 k"]
[null,"Allocations : 12000 6000 3500 2375 1125"]
[null,"N°","Cheval",null,null,null,null,"Poids","Corde","S/A","Jockey","Entraîneur","Record","Gain","Oeill.","Dernières performances",null,null,null,null,null,"P1","P2","P3","P4","P5","P6","P7",null,null,null,19800,"%théorique","% de gagner",null,"NBC","V","P"]
[null,1,"YOUMSHINE",null,null,null,null,73,0,"H3","CHEVILLARD T.","LENOGUE P.",null,38945,"X","1h 2h 2h 2h 4h 2h 6h 5h 5h 6h 7h 7p",null,null,null,null,null,1,2,2,2,4,2,6,null,null,1,{"$f":"IF(V29=\"\",\"\",COUNTIF(V29:AA29,\"<6\")-COUNTIF(V29:AA29,0))","v":6},{"$f":"IF(AF29=\"\",\"\",$AF$28*AF29/N29)","v":3.050455770959045},{"$f":"IF(AG29=\"\",\"\",AG29*(1-AG29)*STDEVP(V29:AA29))","v":-5.6138769206783676},{"$f":"IF(AF29=\"\",\"\",(AF29/COUNT(V29:AA29)))","v":1},28,1,7,{"$f":"IF(AF29=\"\",\"\",N29/1000)","v":38.945},{"$f":"IF(AG29=\"\",\"\",AG29*((AM29/AJ29)-1-(1-AG29)))","v":7.4472260115163946}]
[null,2,"BURDIGALA",null,null,null,null,72,0,"H3","FARCINADE M.","BUTEL MME P.",null,5030,"A","6s 3h 8h 4h 8p 5p (15) 0p 4p 2p 2p 5p 3p",null,null,null,null,null,6,3,8,4,8,5,10,null,null,2,{"$f":"IF(V30=\"\",\"\",COUNTIF(V30:AA30,\"<6\")-COUNTIF(V30:AA30,0))","v":3},{"$f":"IF(AF30=\"\",\"\",$AF$28*AF30/N30)","v":11.809145129224651},{"$f":"IF(AG30=\"\",\"\",AG30*(1-AG30)*STDEVP(V30:AA30))","v":-240.69304561454467},{"$f":"IF(AF30=\"\",\"\",(AF30/COUNT(V30:AA30)))","v":0.5},18,3,3,{"$f":"IF(AF30=\"\",\"\",N30/1000)","v":5.03},{"$f":"IF(AG30=\"\",\"\",AG30*((AM30/AJ30)-1-(1-AG30)))","v":119.13761842464099}]
[null,3,"HISPANIQUE",null,null,null,null,71,0,"H3","MAYEUR R.","CHEREL G. (E1)",null,null,null,"0h Ah",null,null,null,null,null,10,10,0,0,0,0,0,null,null,3,0,{"$error":"#DIV/0!"},{"$error":"#DIV/0!"},0,16,1,7,0,{"$error":"#DIV/0!"}]
[null,4,"LOUP ROYAL",null,null,null,null,70,0,"H3","NATTIEZ J.","LENOGUE P.",null,17100,null,"9h 6h 8h 6p 4p 5p 5p 0p 2p 1p 0p (15) 5p",null,null,null,null,null,9,6,8,6,4,5,5,null,null,4,2,2.3157894736842106,-5.1790595244248054,0.33333333333333331,14,4,2,17.100000000000001,3.559873367629601]
[null,5,"CETAVOIR",null,null,null,null,70,0,"H3","MERIENNE A.","CHEREL G. (E1)",null,7710,"A","2h 4h 7h Th",null,null,null,null,null,2,4,7,10,0,0,0,null,null,5,2,5.136186770428016,-77.975930861651364,0.33333333333333331,32,1,4,7.71,17.345540999863744]
[null,6,"DJAC DE LARCHAMP",null,null,null,null,"Non Partant",null,null,null,null,null,null,null,null,null,null,null,null,null,0,0,0,0,0,0,0,null,null,6,0,{"$error":"#DIV/0!"},{"$error":"#DIV/0!"},0,29,4,2,0,{"$error":"#DIV/0!"}]
[null,7,"STYLISH CAT",null,null,null,null,66,0,"F3","GIRON J.","ROLLAND (S) M.",null,18000,null,"2h 3h 0h 3h 1h 0h 7p 5p 3p 7p 3p",null,null,null,null,null,2,3,10,3,1,10,7,null,null,7,4,4.4000000000000004,-55.585118711955843,0.66666666666666663,23,1,6,18,14.003478260869567]
[null,8,"DOGRA MAGRA",null,null,null,null,66,0,"F3","LUCAS H.","LEENDERS (S) E&G.",null,810,"A","Ts 5s Dp 2p Ah",null,null,null,null,null,10,5,10,2,10,0,0,null,null,8,2,48.888888888888886,-9597.7926826824296,0.33333333333333331,12,2,4,0.81,2295.6456790123457]
[null,null,null,null,null,null,null,null,null,null,null,null,null,null,null,null,null,null,null,null,null,null,null,null,null,null,null,null,null,null,9,"","","","",33,1,7,"",""]
[null,null,null,null,null,null,null,null,null,null,null,null,null,null,null,null,null,null,null,null,null,null,null,null,null,null,null,null,null,null,10,"","","","",9,3,3,"",""]
[null,null,null,null,null,null,null,null,null,null,null,null,null,null,null,null,null,null,null,null,null,null,null,null,null,null,null,null,null,null,11,"","","","",12,4,3,"",""]
[null,null,null,null,null,null,null,null,null,null,null,null,null,null,null,null,null,null,null,null,null,null,null,null,null,null,null,null,null,null,12,"","","","",25,2,3,"",""]
[null,null,null,null,null,null,null,null,null,null,null,null,null,null,null,null,null,null,null,null,null,null,null,null,null,null,null,null,null,null,13,"","","","",27,3,4,"",""]
[null,null,null,null,null,null,null,null,null,null,null,null,null,null,null,null,null,null,null,null,null,null,null,null,null,null,null,null,null,null,14,"","","","",23,2,5,"",""]
[null,null,null,null,null,null,null,null,null,null,null,null,null,null,null,null,null,null,null,null,null,null,null,null,null,null,null,null,null,null,15,"","","","",27,3,9,"",""]
[null,null,null,null,null,null,null,null,null,null,null,null,null,null,null,null,null,null,null,null,null,null,null,null,null,null,null,null,null,null,16,"","","","",21,4,2,"",""]
[null,null,null,null,null,null,null,null,null,null,null,null,null,null,null,null,null,null,null,null,null,null,null,null,null,null,null,null,null,null,17,"","","","",null,null,null,"",""]
[null,null,null,null,null,null,null,null,null,null,null,null,null,null,null,null,null,null,null,null,null,null,null,null,null,null,null,null,null,null,18,"","","","",null,null,null,"",""]
[null,null,null,null,null,null,null,null,null,null,null,null,null,null,null,null,null,null,null,null,null,null,null,null,null,null,null,null,null,null,19,"","","","",null,null,null,"",""]
[null,null,null,null,null,null,null,null,null,null,null,null,null,null,null,null,null,null,null,null,null,null,null,null,null,null,null,null,null,null,20,"","","","",null,null,null,"",""]
[]
[null,"Course n°2 - PRIX FRANCOIS DE PONCINS"]
[null,"Haies - Listed - 4 ans - 3600 mètres - départ vers 13h05"]
[null,"COURSE A CONDITIONS , HAIES, 3.600 mètres- Pour tous poulains et pouliches de 4 ans, n'ayant pas, cette année, reçu 50.000 en courses de haies (victoires et places). Poids : 66 k. Surcharges accumulées \r\npour les sommes reçues en courses de haies(victoires et places) : 1 k. par 18.000 cette année et par 42.000 l'année dernière."]
[null,"Allocations : 40800 20400 11900 8075 3825"]
[null,"N°","Cheval",null,null,null,null,"Poids","Corde","S/A","Jockey","Entraîneur","Record","Gain","Oeill.","Dernières performances",null,null,null,null,null,"P1","P2","P3","P4","P5","P6","P7"]
[null,1,"CLOS DU CHENET",null,null,null,null,68,0,"H4","LECORDIER A.","GALLORINI MLLE I.",null,77805,null,"5s 1s 4h 2h 9h 1h (15) 5h 3h 2h 0h",null,null,null,null,null,5,1,4,2,9,1,5]
[null,2,"HOLLYSTER",null,null,null,null,67,0,"H4","GASNIER A.","DERAT G.",null,19680,null,"0h 1h 1h 3p 2h 3p 0p 9p 1p 0p 2p 9p",null,null,null,null,null,10,1,1,3,2,3,10]
[null,3,"SABLE GRIS",null,null,null,null,67,0,"H4","REGAIRAZ M.","BRESSOU D.",null,52765,null,"7h 5h 3h (15) 3h 1h Th Th 2p 3p",null,null,null,null,null,7,5,3,3,1,10,10]
[null,4,"FRENCH KISS DU PECOS",null,null,null,null,"Non Partant",null,null,null,null,null,null,null,null,null,null,null,null,null,0,0,0,0,0,0,0]
[null,5,"CORAZONES",null,null,null,null,67,0,"H4","RICOU J.","COTTIN (S) FM.",null,117600,null,"2s 1s 2s 7s 1h 2s 1s 1h (15) 7p 2h Ah 8p",null,null,null,null,null,2,1,2,7,1,2,1]
[null,6,"CAIMAN LAND",null,null,null,null,67,0,"H4","CHARRON J.","PELTIER PH.",null,40800,null,"1s 1s 1h 5p (15) 4p 2p",null,null,null,null,null,1,1,1,5,4,2,0]
[null,7,"BIG BOWL",null,null,null,null,67,0,"M4","PLOUGANOU J.","CHEREL G.",null,37870,null,"Ah Th 5h 5h 4h 2h 4h (15) 3h 0p 0p 1p 0p",null,null,null,null,null,10,10,5,5,4,2,4]
[]
[]
[]
[]
[]
[]
[]
[]
[]
[]
[]
[]
[]
[]
[null,"Course n°3 - PRIX MORGEX"]
[null,"Steeple - Groupe 3 - 4 ans - 4300 mètres - départ vers 13h35"]
[null,"GROUPE III , STEEPLE-CHASE, 4.300 mètres- Pour tous poulains et pouliches de 4 ans. Poids : 66 k. Surcharges accumulées jusqu'à concurrence de 4 k. pour les sommes reçues en steeple-chase (victoires et \r\nplaces) : 1 k. par 30.000 cette année et par75.000 l'année dernière. Un souvenir sera offert au propriétaire du cheval gagnant par FRANCE GALOP."]
[null,"Allocations : 69750 34100 20150 13950 7750 5425 3875"]
[null,"N°","Cheval",null,null,null,null,"Poids","Corde","S/A","Jockey","Entraîneur","Record","Gain","Oeill.","Dernières performances",null,null,null,null,null,"P1","P2","P3","P4","P5","P6","P7"]
[null,1,"PUNCH NANTAIS",null,null,null,null,70,0,"H4","LESTRADE B.","MACAIRE (S) G.",null,479655,"A","Ts 6s 6s 1s 2s 1s 5s (15) 1s 2s 1s 4h 1h",null,null,null,null,null,10,6,6,1,2,1,5]
[null,2,"ROI MAGE",null,null,null,null,70,0,"H4","GUEGUEN T.","NICOLLE F.",null,241515,null,"4s Th Ts 5s 2s 4s 3s (15) 3s 3s 5h 2h 1s",null,null,null,null,null,4,10,10,5,2,4,3]
[null,3,"CHAHUTEUR",null,null,null,null,68,0,"H4","NABET K.","MACAIRE (S) G.",null,116240,null,"1s 2h 4p 2p 1s 3s 3s 1s (15) 1h 3s 2h 5p",null,null,null,null,null,1,2,4,2,1,3,3]
[null,4,"SAINT POURSAIN",null,null,null,null,68,0,"H4","RE G.","CHEREL G.",null,165010,"A","1h 1h Th 1h 8s 4s 5s 4s 3s 3s 1s (15) 3s",null,null,null,null,null,1,1,10,1,8,4,5]
[null,5,"POLY GRANDCHAMP",null,null,null,null,68,0,"H4","DUCHENE A.","NICOLLE F. (E1)",null,102160,"A","5s 3s 2s 1s 2s 1s (15) 4s 3h 3h 1h",null,null,null,null,null,5,3,2,1,2,1,4]
[null,6,"GALOP MARIN",null,null,null,null,67,0,"H4","REGAIRAZ M.","BRESSOU D. (E1)",null,89390,null,"8s 8s 5s 1s 3s 6s (15) 8h 1h 3h 5p",null,null,null,null,null,8,8,5,1,3,6,8]
[null,7,"SAINT XAVIER",null,null,null,null,67,0,"H4","DE GILES F.","CLAYEUX (S) E. (E1)",null,69425,"A","3s 3s 1s 7h As 6s 3s 3s 5h (15) 2h 6h 3h",null,null,null,null,null,3,3,1,7,10,6,3]
[null,8,"COBRA DE LARRE",null,null,null,null,67,0,"H4","CHAZELLE E.","BAUDRON (S) L.",null,60240,null,"2s 1s 6s 6s 8s Ts 1s (15) 2s 7h 6h",null,null,null,null,null,2,1,6,6,8,10,1]
[null,9,"COASTALINA",null,null,null,null,66,0,"F4","JOUIN O.","QUINTON (S) P. (E1)",null,110500,null,"2s 2s 6s 1s 7s 4h 8h (15) 1h 8h 3h",null,null,null,null,null,2,2,6,1,7,4,8]
[null,10,"PERFECT IMPULSE",null,null,null,null,65,0,"F4","CARROUX M.","CHAILLE-CHAILLE A.",null,129275,null,"6h 1s 4h Ah 2h 1s (15) 4h 2h 1h",null,null,null,null,null,6,1,4,10,2,1,4]
[]
[]
[]
[]
[]
[]
[]
[]
[]
[]
[]
[null,"Course n°4 - PRIX FIFRELET"]
[null,"Haies - Handicap Listed - 3 ans - 3600 mètres - Ref: +07 - départ vers 14h05"]
[null,"HANDICAP, Réf. +070 , HAIES, 3.600 mètres- Pour tous poulains et pouliches de 3 ans , ayant, lors de l'une de leurs six dernières courses en obstacles, soit été classés dans les sept premiers d'une course \r\nayant servi de support à des paris enregistrés sur le plan national, soit ayant reçu une allocation de 7.500, soit été classés dans les trois premiers d'un prix (à réclamer excepté) couru sur un hippodrome \r\nde 1ère catégorie.La référence de cette épreuve sera éventuellement remontée à la déclaration des partants probables, afin que le poids le plus élevé soit fixé à 69 k."]
[null,"Allocations : 55200 27600 16100 10925 5175"]
[null,"N°","Cheval",null,null,null,null,"Poids","Corde","S/A","Jockey","Entraîneur","Record","Gain","Oeill.","Dernières performances",null,null,null,null,null,"P1","P2","P3","P4","P5","P6","P7"]
[null,1,"OKAY SENAM",null,null,null,null,69,0,"H3","LESTRADE B.","MACAIRE (S) G.",null,64050,null,"5s 2s 3s 4h 1h 4h",null,null,null,null,null,5,2,3,4,1,4,0]
[null,2,"SQUARE MARCEAU",null,null,null,null,68,0,"H3","REGAIRAZ M.","BRESSOU D.",null,11520,null,"2h Th 6h 6h",null,null,null,null,null,2,10,6,6,0,0,0]
[null,3,"PYROMANE",null,null,null,null,67,0,"H3","BEAUNEZ JL.","BUTEL MME P.",null,43865,null,"3h 4h 4h 3h 3h 4h 1h 5h 3h 5h",null,null,null,null,null,3,4,4,3,3,4,1]
[null,4,"SOLVEDO",null,null,null,null,67,0,"H3","PAILLARD S.","CHEREL G.",null,18240,null,"2h 3h 0h 9p",null,null,null,null,null,2,3,10,9,0,0,0]
[null,5,"TREIZOR DU PILORI",null,null,null,null,65.5,0,"H3","MESCAM D.","COTTIN (S) FM. (E1)",null,12720,null,"4h 9h 5h Th 2h",null,null,null,null,null,4,9,5,10,2,0,0]
[null,6,"HURKHAN",null,null,null,null,65,0,"H3","MASURE G.","NICOLLE F. (E2)",null,17110,null,"4h 5h 3h 3h",null,null,null,null,null,4,5,3,3,0,0,0]
[null,7,"FUTBOLISTO",null,null,null,null,65,0,"H3","RICOU J.","SEROR M.",null,15360,null,"8h 0h 0h 8h Th 1h",null,null,null,null,null,8,10,10,8,10,1,0]
[null,8,"LUCKY RUBY",null,null,null,null,64,0,"H3","PHILIPPERON L.","COLLET (S) ROB.",null,20160,null,"2h 7h 5h 7h 7h 6h",null,null,null,null,null,2,7,5,7,7,6,0]
[null,9,"BERGERAC",null,null,null,null,64,0,"H3","DE CHITRAY A.","CHEREL G.",null,9220,null,"5h 6h 3h 4h 5h 4p",null,null,null,null,null,5,6,3,4,5,4,0]
[null,10,"YELLOWSTONE CAY",null,null,null,null,63,0,"F3","LEMAGNEN T.","CHAILLE-CHAILLE A.",null,32515,"A","1h 3s 1h 5h 1h 5h 2h 3h 2h Ah 8p 7p",null,null,null,null,null,1,3,1,5,1,5,2]
[null,11,"HELL'S QUEEN",null,null,null,null,63,0,"F3","DELMARES M.","COTTIN (S) FM. (E1)",null,11040,null,"1h 8h 0h 0h",null,null,null,null,null,1,8,10,10,0,0,0]
[null,12,"SUDISTE",null,null,null,null,63,0,"H3","CHEVILLARD T.","CHEREL G. (E2)",null,2160,null,"5h Ah Th 0p",null,null,null,null,null,5,10,10,10,0,0,0]
[]
[]
[]
[]
[]
[]
[]
[]
[]
[null,"Course n°5 - PRIX GEORGES COURTOIS"]
[null,"Steeple - Groupe 2 - 5 ans et Plus - 4400 mètres - départ vers 14h35"]
[null,"GROUPE II , STEEPLE-CHASE, 4.400 mètres- Pour tous chevaux de 5 ans et au-dessus. Poids : 5 ans, 64 k. 6 ans et au-dessus, 66 k. Surcharges accumulées jusqu'à concurrence de 4 k. pour les 5 ans et de \r\n6 k. pour les 6 ans et au-dessus pour les sommes reçues en steeple-chase (victoires et places) : 1 k. par 65.000 cette année et par 155.000 l'année dernière. Un souvenir sera offert au propriétaire, à \r\nl'entraîneur et au jockey du cheval gagnant par FRANCEGALOP ."]
[null,"Allocations : 108000 52800 31200 21600 12000 8400 6000"]
[null,"N°","Cheval",null,null,null,null,"Poids","Corde","S/A","Jockey","Entraîneur","Record","Gain","Oeill.","Dernières performances",null,null,null,null,null,"P1","P2","P3","P4","P5","P6","P7"]
[null,1,"STORM OF SAINTLY",null,null,null,null,72,0,"H7","DUCHENE A.","MACAIRE (S) G.",null,1590590,null,"3s As 2h 1s 2s 1s 1s 1h (15) 1h Th (14) 1s 1s",null,null,null,null,null,3,10,2,1,2,1,1]
[null,2,"KELTHOMAS",null,null,null,null,68,0,"H7","CHARRON J.","BAUDRELLE JM.",null,351930,null,"3h 1s 1s 7s 2s (15) 1s 8s Ah 3s 2s 3h 1h",null,null,null,null,null,3,1,1,7,2,1,8]
[null,3,"JEMY BAIE",null,null,null,null,68,0,"H7","GASNIER A.","LE CLERC (S) A.",null,466810,null,"0h Ah 3s 6s 1s As (15) 2s Ts 3s 1s Ts 4s",null,null,null,null,null,10,10,3,6,1,10,2]
[null,4,"VALTOR",null,null,null,null,68,0,"H7","NABET K.","LERAY (S) E.",null,347915,null,"1s 6s 7p 1s 3s 4s 3s 0h (15) 8s 2s 5s 7s",null,null,null,null,null,1,6,7,1,3,4,3]
[null,5,"SHANNON ROCK",null,null,null,null,67,0,"H10","COLAS S.","GALLORINI (S) JP.",null,1690790,"X","5s 5s 3h 8s 5s 4s (15) 4s 5s 2s 3s 8h (14) 6s",null,null,null,null,null,5,5,3,8,5,4,4]
[null,6,"BEL LA VIE",null,null,null,null,67,0,"H10","LESTRADE B.","MACAIRE (S) G. (E1)",null,1545635,null,"2s 8h 4h (15) 4h 1s As 2s 1s 2s 2h (13) Ah 1s",null,null,null,null,null,2,8,4,4,1,10,2]
[null,7,"LACHLAN BRIDGE",null,null,null,null,67,0,"H8","DE CHITRAY A.","CHEREL G.",null,485555,null,"1s 3s 6s Dh 3h 8h 6s (15) Rs 0s 2h 1h 4s",null,null,null,null,null,1,3,6,10,3,8,6]
[null,8,"DOS SANTOS",null,null,null,null,66,0,"H6","PLOUGANOU J.","CLAYEUX (S) E. (E1)",null,311935,"X","2s 3s 6h (15) 4s 8h 6h 4h 3h 1h 2h 2h (14) 3h",null,null,null,null,null,2,3,6,4,8,6,4]
[null,9,"DJAGBLE",null,null,null,null,65,0,"H5","LECORDIER A.","BERTRAN DE BALANDA (S) J.",null,249520,null,"7s 6s 3s 3s 4s 4s 3h (15) 2s 7s 9s 1s Ts",null,null,null,null,null,7,6,3,3,4,4,3]
[null,10,"BIPOLAIRE",null,null,null,null,64,0,"H5","GUEGUEN T.","NICOLLE F.",null,167555,null,"1s 5h 3h (15) 4s 1s 1s 1h (14) 1h 2p 6p 3p 5p",null,null,null,null,null,1,5,3,4,1,1,1]
[null,11,"BOB AND CO",null,null,null,null,64,0,"H5","DE GILES F.","CLAYEUX (S) E. (E1)",null,135340,null,"2s 1s (15) 5s 1s 5h 1s 4h 3h Ah (14) 3p 4p",null,null,null,null,null,2,1,5,1,5,1,4]
[]
[]
[]
[]
[]
[]
[]
[]
[]
[]
[null,"Course n°6 - PRIX LE PARISIEN (PRIX JEAN LAUMAIN)"]
[null,"Steeple - Handicap - 5 ans et Plus - 4400 mètres - Ref: +07 - départ vers 15h15"]
[null,"HANDICAP, Réf. +070 , STEEPLE-CHASE, 4.400 mètres- Pour tous chevaux de 5 ans et au-dessus , ayant couru depuis le 1er janvier de l'année dernière inclus, et ayant lors de l'une de leurs six dernières \r\ncourses en obstacles, soit été classés dans lessept premiers d'une course ayant servi de support à des paris enregistrés sur le plan national, soit ayant reçu une allocation de 7.500, soit été classés \r\ndans les trois premiers d'un prix (à réclamer excepté) couru sur un hippodrome de 1ère catégorie. La référence applicable dans ce handicap sera + 7. La référence de cette épreuve sera éventuellement remontée \r\nà la déclaration des partants probables, afin que le poids le plusélevé soit fixé à 72 k. Des souvenirs seront remis par Monsieur Romain POREE, Journaliste Adjoint au Chef de service du Parisien, au propriétaire, \r\nà l'entraîneur, au jockey et au cavalier d'entraînement du"]
[null,"Allocations : 42750 20900 12350 8550 4750 3325 2375"]
[null,"N°","Cheval",null,null,null,null,"Poids","Corde","S/A","Jockey","Entraîneur","Record","Gain","Oeill.","Dernières performances",null,null,null,null,null,"P1","P2","P3","P4","P5","P6","P7"]
[null,1,"BRUT IMPERIAL",null,null,null,null,72,0,"H5","PLOUGANOU J.","SOURDEAU DE BEAUREGARD (S) D.",null,114320,null,"1s Ah 1h 3h (15) 2h 8h 2h 2h (14) 1h",null,null,null,null,null,1,10,1,3,2,8,2]
[null,2,"PINSON DU RHEU",null,null,null,null,71,0,"H5","BEAURAIN T.","CHEREL G.",null,127110,null,"Ts 4s 3s (15) 7s As As 4s 6s 1s 1s 3h 2h",null,null,null,null,null,10,4,3,7,10,10,4]
[null,3,"ULTRA LUCKY",null,null,null,null,71,0,"H8","JOUIN O.","AUBREE E.",null,403250,null,"1s 4s 1s 5h Th Ts 6s 0h 4h (14) 3h 2s 1s",null,null,null,null,null,1,4,1,5,10,10,6]
[null,4,"BAZILLE",null,null,null,null,67,0,"H5","MASURE G.","NICOLLE F.",null,89920,null,"1s 1h (15) 2s Ts 2s 1s 6h Th 4h (14) 7p 5p",null,null,null,null,null,1,1,2,10,2,1,6]
[null,5,"BRANLE BAS",null,null,null,null,66,0,"H5","LESTRADE B.","DE LAGENESTE N.",null,79290,"A","3h As As 2h 1s 1s 2s 5h 9p (14) 2h 1p 1h",null,null,null,null,null,3,10,10,2,1,1,2]
[null,6,"SIERRA NEVADA",null,null,null,null,66,0,"F6","REGAIRAZ M.","DELAROCHE MLLE S.",null,216855,null,"7s As Ah 1h 7s 8s 1s 0s 5s 4s 0s (15) 6h",null,null,null,null,null,7,10,10,1,7,8,1]
[null,7,"VOL DE BRION",null,null,null,null,65,0,"H7","PHILIPPERON L.","CHAIGNON GIL. (E1)",null,157010,"A","3s Ts 7s 7s 2s 4s 1s 6s 2s (15) 5s 2s 6s",null,null,null,null,null,3,10,7,7,2,4,1]
[null,8,"BORICE",null,null,null,null,65,0,"H5","GUEGUEN T.","NICOLLE F.",null,60150,"A","1s 2s 2s 2s 1s 5p 5h 3h (14) 2p 7p",null,null,null,null,null,1,2,2,2,1,5,5]
[null,9,"AL ROC",null,null,null,null,64,0,"H5","REY J.","WINDRIF D.",null,110780,null,"5h 0h Ts 2s 1h (15) 3s 4s 3s 2h 1s 6s 6h",null,null,null,null,null,5,10,10,2,1,3,4]
[null,10,"ARGENTIER",null,null,null,null,64,0,"H6","NABET K.","LERAY (S) E.",null,78695,null,"0s Ah 8p 9s Ts 1h 3s 1s Ts (15) 4s 3h 0p",null,null,null,null,null,10,10,8,9,10,1,3]
[null,11,"SISTADENN",null,null,null,null,64,0,"F8","LECOURT Y.","MERIENNE J.",null,216565,null,"2s 4s 3s 7h 3h 1h (15) 3h 3s 2h Ah (14) 6h 1s",null,null,null,null,null,2,4,3,7,3,1,3]
[null,12,"CHEB DE KERVINIOU",null,null,null,null,"Non Partant",null,null,null,null,null,null,null,null,null,null,null,null,null,0,0,0,0,0,0,0]
[null,13,"HAWK THE TALK",null,null,null,null,62,0,"H8","RICOU J.","COTTIN (S) FM.",null,263760,"A","0h 4s 2s 3s As 6s 9s 5s 4s 0s 7s 5s",null,null,null,null,null,10,4,2,3,10,6,9]
[null,14,"EAUX FORTES",null,null,null,null,62,0,"F7","BURELLER E.","AUBERT C.",null,156080,"A","3s 4s 1h 2s 8s 4s 4s 4h 4s 2s 5s (14) Ts",null,null,null,null,null,3,4,1,2,8,4,4]
[null,15,"VAUBAN LAUGIL",null,null,null,null,62,0,"H7","LECORDIER A.","AUBERT C.",null,179965,null,"2s 1s 4s 0s 0s As 0h (15) Dh 0s 5s 9h (14) 3s",null,null,null,null,null,2,1,4,10,10,10,10]
[null,16,"BARON DU SEUIL",null,null,null,null,62,0,"H5","GILLET T.","BIETOLINI G.",null,101280,null,"1s 6s 2s 7s 9h 8s 0s 0h 8s 3h As (15) 7h",null,null,null,null,null,1,6,2,7,9,8,10]
[null,17,"ULTRANET",null,null,null,null,62,0,"H8","UBEDA D.","CHAIGNON GIL. (E1)",null,108935,"X","6s 5s 4s 6s 6s 1s 2s (15) 7s 3s 6s 8s 9s",null,null,null,null,null,6,5,4,6,6,1,2]
[]
[]
[]
[]
[null,"Course n°7 - PRIX ANDRE MICHEL"]
[null,"Haies - femelles - Groupe 3 - 4 ans et 5 - 3600 mètres - départ vers 15h50"]
[null,"GROUPE III , HAIES, 3.600 mètres- Pour juments de 4 et 5 ans , n'ayant pas, en courses à obstacles, cette année, reçu une allocation de 100.000 . Poids : 4 ans, 65 k. 5 ans, 67 k. Surcharges accumulées \r\net limitées à 4 k. pour les sommes reçues encourses de haies (victoires et places) : 1 k. par 25.000 cette année et par 60.000 l'année dernière. Un souvenir sera remis par Madame Annie MICHEL, au propriétaire \r\nde la jument gagnante."]
[null,"Allocations : 60750 29700 17550 12150 6750 4725 3375"]
[null,"N°","Cheval",null,null,null,null,"Poids","Corde","S/A","Jockey","Entraîneur","Record","Gain","Oeill.","Dernières performances",null,null,null,null,null,"P1","P2","P3","P4","P5","P6","P7"]
[null,1,"CORSCIA",null,null,null,null,70,0,"F5","LESTRADE B.","MACAIRE (S) G.",null,358625,null,"1s 1s 1h 4s 2h 5h (15) 1s 1s 1h 1s 2s 1s",null,null,null,null,null,1,1,1,4,2,5,1]
[null,2,"KADA RIQUE",null,null,null,null,70,0,"F5","LECORDIER A.","LE GAL R.",null,272015,null,"Ts 3s 1s 1h 4h 1h 2h (15) 3h 0p (14) 1h 1h 1h",null,null,null,null,null,10,3,1,1,4,1,2]
[null,3,"L'ESPIGUETTE",null,null,null,null,69,0,"F5","CHAZELLE E.","SCANDELLA C.",null,165965,null,"0h 3h 5s 2h 3h 2h 1h (15) 6h Ts 7s 2s 1s",null,null,null,null,null,10,3,5,2,3,2,1]
[null,4,"CASABLANCA MIX",null,null,null,null,68,0,"F4","DE GILES F.","CLAYEUX (S) E.",null,80690,"A","3h 1h 5p 4h 1h 1h (15) 1p 1p 4p 3p",null,null,null,null,null,3,1,5,4,1,1,1]
[null,5,"YOSILLE",null,null,null,null,67,0,"F4","PLOUGANOU J.","BERTRAN DE BALANDA (S) J.",null,140010,"A","1h As 2s 4s 9h 4h 2h (15) 6h 3h 5h 1h 4p",null,null,null,null,null,1,10,2,4,9,4,2]
[null,6,"KITKATIE",null,null,null,null,67,0,"F4","BELLEY MO.","GALLORINI (S) JP.",null,54090,null,"2h 4h 5h 2h 1h 7p (15) 2p 6p 1p 2p 5p",null,null,null,null,null,2,4,5,2,1,7,2]
[null,7,"CARTE SUR TABLE",null,null,null,null,67,0,"F4","BEAURAIN T.","PACAULT MLLE AS.",null,71370,null,"1h 4h 1h 1h (15) 3p 4p",null,null,null,null,null,1,4,1,1,3,4,0]
[null,8,"PONTE FORTUNE",null,null,null,null,67,0,"F4","MASURE G.","NICOLLE F.",null,77235,null,"4h 4h 2h 4h 1h (15) 2h 6p 7p 1p 1p 2p 2p",null,null,null,null,null,4,4,2,4,1,2,6]
[null,9,"LUCKY FLOWER",null,null,null,null,66,0,"F4","PHILIPPERON L.","COLLET (S) ROB.",null,42160,"X","1h 7h 0h Th 8h 0h As 7h (15) 4h 2h 6h 6h",null,null,null,null,null,1,7,10,10,8,10,10]
[null,10,"TRIANA DU BERLAIS",null,null,null,null,66,0,"F4","CARROUX M.","CHAILLE-CHAILLE A.",null,309025,"A","6s 5s 1s 2s 4s 2s Ts 2s (15) 1h 2h 1h 5h",null,null,null,null,null,6,5,1,2,4,2,10]
[]
[]
[]
[]
[]
[]
[]
[]
[]
[]
[]
[null,"Course n°8 - PRIX NUPSALA"]
[null,"Steeple - 4 ans - 4300 mètres - départ vers 16h23"]
[null,"COURSE A CONDITIONS , STEEPLE-CHASE, 4.300 mètres- Pour poulains entiers, hongres et pouliches de 4 ans , n'étant pas de race Pur Sang, n'ayant pas, en steeple-chase, reçu une allocation de 26.500. Poids \r\n: 66 k. Surcharges accumulées pour les sommes reçues en steeple-chase (victoires et places) :1 k. par 12.000."]
[null,"Allocations : 27840 13920 8120 5510 2610"]
[null,"N°","Cheval",null,null,null,null,"Poids","Corde","S/A","Jockey","Entraîneur","Record","Gain","Oeill.","Dernières performances",null,null,null,null,null,"P1","P2","P3","P4","P5","P6","P7"]
[null,1,"COUSIN GERMAIN",null,null,null,null,69,0,"H4","DE CHITRAY A.","CHEREL G. (E1)",null,76600,null,"2s 3s 3s 6s 2s 1h 3h (15) 5h 5h 1p 3p",null,null,null,null,null,2,3,3,6,2,1,3]
[null,2,"CAFERTITI",null,null,null,null,68,0,"H4","RICOU J.","COTTIN (S) FM.",null,27940,null,"3s As As 4s 3s 4s 7s 6h 4h Ah Th 8h",null,null,null,null,null,3,10,10,4,3,4,7]
[null,3,"CRACK DE REVE",null,null,null,null,68,0,"H4","PLOUGANOU J.","CHEREL G.",null,117285,null,"1s 1p 1h 7h 2h 3h 1p (15) 4h 3h 1p 5p",null,null,null,null,null,1,1,1,7,2,3,1]
[null,4,"CHALUTIER",null,null,null,null,67,0,"H4","CHEVILLARD T.","NICOLLE F.",null,24480,null,"2s 4h 1h (15) 8h",null,null,null,null,null,2,4,1,8,0,0,0]
[null,5,"CARTAPUCE BEY",null,null,null,null,67,0,"H4","LEFEBVRE MR C.","LECOIFFIER E.",null,17515,"A","As 6s 2s 5s 7s 3s 4s 5s (15) 0h 0h 3p 5p",null,null,null,null,null,10,6,2,5,7,3,4]
[null,6,"CACHACA MACALO",null,null,null,null,67,0,"F4","CAMUS M.","BOISBRUNET (S) A.",null,62070,null,"6s As As 2s 1h 1h 1s 5s 1s (15) 4h Th 1p",null,null,null,null,null,6,10,10,2,1,1,1]
[null,7,"CALNUTZ",null,null,null,null,66,0,"H4","CHARRON J.","PELTIER PH. (E1)",null,30425,null,"Ts Ts 7s 4s 5h 1h 3p (15) 3p 4p",null,null,null,null,null,10,10,7,4,5,1,3]
[null,8,"COLOMBIA D'ALENE",null,null,null,null,65,0,"F4","NATTIEZ J.","BOISBRUNET (S) A.",null,39375,null,"5s 3s Ts 2s 2h 3h",null,null,null,null,null,5,3,10,2,2,3,0]

{"sheet":"Feuil1","index":1,"n_rows":232,"n_cols":48,"rows_kept":232,"cut":false,"hidden":false,"merged":[[230,3,230,7],[231,3,231,7],[224,3,224,7],[225,3,225,7],[226,3,226,7],[227,3,227,7],[228,3,228,7],[229,3,229,7],[218,3,218,7],[219,3,219,7],[220,3,220,7],[221,3,221,7],[222,3,222,7],[223,3,223,7],[212,3,212,7],[213,3,213,7],[214,3,214,7],[215,3,215,7],[216,3,216,7],[217,3,217,7],[201,3,201,7],[202,3,202,7],[203,3,203,7],[204,3,204,7],[205,3,205,7],[209,2,209,20],[195,3,195,7],[196,3,196,7],[197,3,197,7],[198,3,198,7],[199,3,199,7],[200,3,200,7],[189,3,189,7],[190,3,190,7],[191,3,191,7],[192,3,192,7],[193,3,193,7],[194,3,194,7],[178,3,178,7],[179,3,179,7],[183,2,183,20],[186,3,186,7],[187,3,187,7],[188,3,188,7],[172,3,172,7],[173,3,173,7],[174,3,174,7],[175,3,175,7],[176,3,176,7],[177,3,177,7],[166,3,166,7],[167,3,167,7],[168,3,168,7],[169,3,169,7],[170,3,170,7],[171,3,171,7],[160,3,160,7],[161,3,161,7],[162,3,162,7],[163,3,163,7],[164,3,164,7],[165,3,165,7],[149,3,149,7],[150,3,150,7],[151,3,151,7],[152,3,152,7],[153,3,153,7],[157,2,157,20],[143,3,143,7],[144,3,144,7],[145,3,145,7],[146,3,146,7],[147,3,147,7],[148,3,148,7],[137,3,137,7],[138,3,138,7],[139,3,139,7],[140,3,140,7],[141,3,141,7],[142,3,142,7],[126,3,126,7],[127,3,127,7],[131,2,131,20],[134,3,134,7],[135,3,135,7],[136,3,136,7],[120,3,120,7],[121,3,121,7],[122,3,122,7],[123,3,123,7],[124,3,124,7],[125,3,125,7],[114,3,114,7],[115,3,115,7],[116,3,116,7],[117,3,117,7],[118,3,118,7],[119,3,119,7],[108,3,108,7],[109,3,109,7],[110,3,110,7],[111,3,111,7],[112,3,112,7],[113,3,113,7],[97,3,97,7],[98,3,98,7],[99,3,99,7],[100,3,100,7],[101,3,101,7],[105,2,105,20],[91,3,91,7],[92,3,92,7],[93,3,93,7],[94,3,94,7],[95,3,95,7],[96,3,96,7],[85,3,85,7],[86,3,86,7],[87,3,87,7],[88,3,88,7],[89,3,89,7],[90,3,90,7],[74,3,74,7],[75,3,75,7],[79,2,79,20],[82,3,82,7],[83,3,83,7],[84,3,84,7],[68,3,68,7],[69,3,69,7],[70,3,70,7],[71,3,71,7],[72,3,72,7],[73,3,73,7],[62,3,62,7],[63,3,63,7],[64,3,64,7],[65,3,65,7],[66,3,66,7],[67,3,67,7],[56,3,56,7],[57,3,57,7],[58,3,58,7],[59,3,59,7],[60,3,60,7],[61,3,61,7],[45,3,45,7],[46,3,46,7],[47,3,47,7],[48,3,48,7],[49,3,49,7],[53,2,53,20],[39,3,39,7],[40,3,40,7],[41,3,41,7],[42,3,42,7],[43,3,43,7],[44,3,44,7],[33,3,33,7],[34,3,34,7],[35,3,35,7],[36,3,36,7],[37,3,37,7],[38,3,38,7],[22,3,22,7],[23,3,23,7],[27,2,27,20],[30,3,30,7],[31,3,31,7],[32,3,32,7],[19,3,19,7],[20,3,20,7],[21,3,21,7],[10,3,10,7],[11,3,11,7],[12,3,12,7],[13,3,13,7],[14,3,14,7],[15,3,15,7],[4,3,4,7],[5,3,5,7],[6,3,6,7],[7,3,7,7],[8,3,8,7],[9,3,9,7],[16,3,16,7],[17,3,17,7],[18,3,18,7]]}
[]
[null,null,null,null,null,null,null,null,null,null,null,null,null,null,null,null,null,null,null,null,null,null,null,null,null,null,null,null,null,null,null,{"$f":"LARGE(AF4:AF350,1)","v":3},3,4,5]
[null,null,null,null,null,null,null,null,null,null,null,null,null,null,null,null,null,null,null,null,null,null,null,null,null,null,null,null,null,null,null,null,null,null,null,null,null,null,1,2,3,4,5]
[null,null,"N°","Cheval",null,null,null,null,"Poids","Corde","S/A","Jockey","Entraîneur","Record","Gain","Oeill.","Dernières performances",null,null,null,null,null,"P1","P2","P3","P4","P5","P6","P7",null,1,2,3,4,5]
[null,null,1,"OTWO",null,null,null,null,57,4,"H3","BOUDOT PC.","DE ROYER DUPRE A.",null,8400,null,"1p 3p",null,null,null,null,null,1,3,0,0,0,0,0,null,{"$f":"IF(W5=\"\",\"\",COUNTIF($W5:$AC5,$AE$4))","v":1},{"$f":"IF(X5=\"\",\"\",COUNTIF($W5:$AC5,$AF$4))","v":0},{"$f":"IF(Y5=\"\",\"\",COUNTIF($W5:$AC5,$AG$4))","v":1},{"$f":"IF(Z5=\"\",\"\",COUNTIF($W5:$AC5,$AH$4))","v":0},{"$f":"IF(AA5=\"\",\"\",COUNTIF($W5:$AC5,$AI$4))","v":0},null,null,1,{"$f":"IF(W5=1,AL5,\"\")","v":1},{"$f":"IF(X5=1,AL5,\"\")","v":""},{"$f":"IF(Y5=1,AL5,\"\")","v":""},{"$f":"IF(Z5=1,AL5,\"\")","v":""},{"$f":"IF(AA5=1,AL5,\"\")","v":""},{"$f":"IF(W5=2,AL5,\"\")","v":""},{"$f":"IF(X5=2,AL5,\"\")","v":""},{"$f":"IF(Y5=2,AL5,\"\")","v":""},{"$f":"IF(Z5=2,AL5,\"\")","v":""},{"$f":"IF(AA5=2,AL5,\"\")","v":""}]
[null,null,2,"STEREO",null,null,null,null,57,1,"M3","LECOEUVRE C.","LELLOUCHE E.",null,104750,null,"7p 3p 1p 1p 3p 3p 7p 2p (15) 1p 1p 2p 4p",null,null,null,null,null,7,3,1,1,3,3,7,null,{"$f":"IF(W6=\"\",\"\",COUNTIF($W6:$AC6,$AE$4))","v":2},{"$f":"IF(X6=\"\",\"\",COUNTIF($W6:$AC6,$AF$4))","v":0},{"$f":"IF(Y6=\"\",\"\",COUNTIF($W6:$AC6,$AG$4))","v":3},{"$f":"IF(Z6=\"\",\"\",COUNTIF($W6:$AC6,$AH$4))","v":0},{"$f":"IF(AA6=\"\",\"\",COUNTIF($W6:$AC6,$AI$4))","v":0},null,null,2,{"$f":"IF(W6=1,AL6,\"\")","v":""},{"$f":"IF(X6=1,AL6,\"\")","v":""},{"$f":"IF(Y6=1,AL6,\"\")","v":2},{"$f":"IF(Z6=1,AL6,\"\")","v":2},{"$f":"IF(AA6=1,AL6,\"\")","v":""},{"$f":"IF(W6=2,AL6,\"\")","v":""},{"$f":"IF(X6=2,AL6,\"\")","v":""},{"$f":"IF(Y6=2,AL6,\"\")","v":""},{"$f":"IF(Z6=2,AL6,\"\")","v":""},{"$f":"IF(AA6=2,AL6,\"\")","v":""}]
[null,null,3,"TRAFFIC JAM",null,null,null,null,55.5,3,"F3","PASQUIER S.","CLEMENT (S) N.",null,16850,null,"3p 1p",null,null,null,null,null,3,1,0,0,0,0,0,null,1,0,1,0,0,null,null,3,"",3,"","","","","","","",""]
[null,null,4,"BESHARA",null,null,null,null,55.5,5,"F3","BADEL ALXI.","DE ROYER DUPRE A.",null,29600,null,"0p 1p 9p 1p 3p 4p 7p (15) 7p",null,null,null,null,null,10,1,9,1,3,4,7,null,2,0,1,1,0,null,null,4,"",4,"",4,"","","","","",""]
[null,null,5,"MATAURI JEWEL",null,null,null,null,55.5,2,"F3","LEMAITRE A.","DELZANGLES M.",null,16250,null,"1p 3p 7p",null,null,null,null,null,1,3,7,0,0,0,0,null,1,0,1,0,0,null,null,5,5,"","","","","","","","",""]
[null,null,null,null,null,null,null,null,null,null,null,null,null,null,null,null,null,null,null,null,null,null,null,null,null,null,null,null,null,null,"","","","","",null,null,6,"","","","","","","","","",""]
[null,null,null,null,null,null,null,null,null,null,null,null,null,null,null,null,null,null,null,null,null,null,null,null,null,null,null,null,null,null,"","","","","",null,null,7,"","","","","","","","","",""]
[null,null,null,null,null,null,null,null,null,null,null,null,null,null,null,null,null,null,null,null,null,null,null,null,null,null,null,null,null,null,"","","","","",null,null,8,"","","","","","","","","",""]
[null,null,null,null,null,null,null,null,null,null,null,null,null,null,null,null,null,null,null,null,null,null,null,null,null,null,null,null,null,null,"","","","","",null,null,9,"","","","","","","","","",""]
[null,null,null,null,null,null,null,null,null,null,null,null,null,null,null,null,null,null,null,null,null,null,null,null,null,null,null,null,null,null,"","","","","",null,null,10,"","","","","","","","","",""]
[null,null,null,null,null,null,null,null,null,null,null,null,null,null,null,null,null,null,null,null,null,null,null,null,null,null,null,null,null,null,"","","","","",null,null,11,"","","","","","","","","",""]
[null,null,null,null,null,null,null,null,null,null,null,null,null,null,null,null,null,null,null,null,null,null,null,null,null,null,null,null,null,null,"","","","","",null,null,12,"","","","","","","","","",""]
[null,null,null,null,null,null,null,null,null,null,null,null,null,null,null,null,null,null,null,null,null,null,null,null,null,null,null,null,null,null,"","","","","",null,null,13,"","","","","","","","","",""]
[null,null,null,null,null,null,null,null,null,null,null,null,null,null,null,null,null,null,null,null,null,null,null,null,null,null,null,null,null,null,"","","","","",null,null,14,"","","","","","","","","",""]
[null,null,null,null,null,null,null,null,null,null,null,null,null,null,null,null,null,null,null,null,null,null,null,null,null,null,null,null,null,null,"","","","","",null,null,15,"","","","","","","","","",""]
[null,null,null,null,null,null,null,null,null,null,null,null,null,null,null,null,null,null,null,null,null,null,null,null,null,null,null,null,null,null,"","","","","",null,null,16,"","","","","","","","","",""]
[null,null,null,null,null,null,null,null,null,null,null,null,null,null,null,null,null,null,null,null,null,null,null,null,null,null,null,null,null,null,"","","","","",null,null,17,"","","","","","","","","",""]
[null,null,null,null,null,null,null,null,null,null,null,null,null,null,null,null,null,null,null,null,null,null,null,null,null,null,null,null,null,null,"","","","","",null,null,18,"","","","","","","","","",""]
[null,null,null,null,null,null,null,null,null,null,null,null,null,null,null,null,null,null,null,null,null,null,null,null,null,null,null,null,null,null,"","","","","",null,null,19,"","","","","","","","","",""]
[null,null,null,null,null,null,null,null,null,null,null,null,null,null,null,null,null,null,null,null,null,null,null,null,null,null,null,null,null,null,"","","","","",null,null,20,"","","","","","","","","",""]
[]
[null,null,"Course n°2 - PRIX DU MANOIR"]
[null,null,"Plat - Handicap Course D - 3 ans - 2400 mètres, Corde à gauche - Ref: +21 - départ vers 13h47"]
[null,null,"HANDICAP DIVISE, Réf. +210 , PLAT, 2.400 mètres, corde à GAUCHE.- Pour poulains entiers, hongres et pouliches de 3 ans . Un souvenir sera offert au propriétaire du cheval gagnant par FRANCE GALOP."]
[null,null,"Allocations : 28200 11400 8400 5400 3300 2100 1200"]
[null,null,"N°","Cheval",null,null,null,null,"Poids","Corde","S/A","Jockey","Entraîneur","Record","Gain","Oeill.","Dernières performances",null,null,null,null,null,"P1","P2","P3","P4","P5","P6","P7"]
[null,null,1,"FRIDAY NIGHT LIGHT",null,null,null,null,60,1,"M3","BENOIST G.","LELLOUCHE E.",null,34150,null,"6p 6p 4p 5p 2p 1p (15) 3p 2p 0p",null,null,null,null,null,6,6,4,5,2,1,3,null,{"$f":"IF(W31=\"\",\"\",COUNTIF($W31:$AC31,$AE$4))","v":1},{"$f":"IF(X31=\"\",\"\",COUNTIF($W31:$AC31,$AF$4))","v":1},{"$f":"IF(Y31=\"\",\"\",COUNTIF($W31:$AC31,$AG$4))","v":1},{"$f":"IF(Z31=\"\",\"\",COUNTIF($W31:$AC31,$AH$4))","v":1},{"$f":"IF(AA31=\"\",\"\",COUNTIF($W31:$AC31,$AI$4))","v":1}]
[null,null,2,"THRONES GAME",null,null,null,null,59.5,9,"F3","RISPOLI U.","DE ROYER DUPRE A.",null,63610,null,"2p 5p 1p 1p 1p 0p 5p (15) 3p 0p 1p 3p 6p",null,null,null,null,null,2,5,1,1,1,10,5,null,{"$f":"IF(W32=\"\",\"\",COUNTIF($W32:$AC32,$AE$4))","v":3},{"$f":"IF(X32=\"\",\"\",COUNTIF($W32:$AC32,$AF$4))","v":1},{"$f":"IF(Y32=\"\",\"\",COUNTIF($W32:$AC32,$AG$4))","v":0},{"$f":"IF(Z32=\"\",\"\",COUNTIF($W32:$AC32,$AH$4))","v":0},{"$f":"IF(AA32=\"\",\"\",COUNTIF($W32:$AC32,$AI$4))","v":2}]
[null,null,3,"VINCENTO",null,null,null,null,59,6,"H3","HARDOUIN E.","FEY MLLE C.",null,11650,null,"4p 4p 3p 9p",null,null,null,null,null,4,4,3,9,0,0,0,null,0,0,1,2,0]
[null,null,4,"OPULENT D'OROUX",null,null,null,null,58.5,2,"M3","BARZALONA M.","SMRCZEK S.",null,59300,null,"1p 2p 2p 7p 4p 4p 5p 2p 2p 2p 1p 7p",null,null,null,null,null,1,2,2,7,4,4,5,null,1,2,0,2,1]
[null,null,5,"GONZALO",null,null,null,null,58.5,7,"H3","HAMELIN A.","GAUVIN JP.",null,26900,null,"1p 3p 9p 4p 1p 4p 0p (15) 5p 4p 0p",null,null,null,null,null,1,3,9,4,1,4,10,null,2,0,1,2,0]
[null,null,6,"DIVINE BERE",null,null,null,null,58,4,"F3","BOUDOT PC.","LEENDERS (S) E&G.",null,16600,null,"1p 3p 3p 4p",null,null,null,null,null,1,3,3,4,0,0,0,null,1,0,2,1,0]
[null,null,7,"GRAND TRIANON",null,null,null,null,57.5,17,"H3","CHEMINAUD V.","DELZANGLES M.",null,54300,null,"3p 1p 3p 2p 3p 8p 5p",null,null,null,null,null,3,1,3,2,3,8,5,null,1,1,3,0,1]
[null,null,8,"MOON DUST",null,null,null,null,57.5,3,"F3","CLAUDIC J.","LIBAUD (S) E.",null,33200,null,"1p 1p 6p 2p 1p (15) 0p",null,null,null,null,null,1,1,6,2,1,10,0,null,3,1,0,0,0]
[null,null,9,"RODERIC QUEEN",null,null,null,null,57,13,"F3","DEMURO C.","BROGI S. (E1)",null,34279,null,"4p 1p 7p 2p 2p 5p 7p 1p (15) 4p 4p 1p",null,null,null,null,null,4,1,7,2,2,5,7,null,1,2,0,1,1]
[null,null,10,"PALMARES",null,null,null,null,57,11,"M3","GUYON M.","BERTRAN DE BALANDA (S) J.",null,23100,null,"2p 1p 2p 2p 8p 4p",null,null,null,null,null,2,1,2,2,8,4,0,null,1,3,0,1,0]
[null,null,11,"SHANAKEE",null,null,null,null,57,5,"H3","BERTO M.","DE ROYER DUPRE A.",null,18350,null,"3p 5p 2p 2p 2p",null,null,null,null,null,3,5,2,2,2,0,0,null,0,3,1,0,1]
[null,null,12,"MORE THAN THIS",null,null,null,null,56.5,16,"M3","SOUMILLON C.","BARBEROT (S) Y.",null,44550,null,"5p 1p 4p 1p 6p 3p 1p 6p 3p 7p (15) 8p 8p",null,null,null,null,null,5,1,4,1,6,3,1,null,3,0,1,1,1]
[null,null,13,"CORNY",null,null,null,null,56.5,12,"F3","LEMAITRE A.","LEFEBVRE (S) JM.",null,40900,null,"0p 7p 2p 0p 0p 1p 6p 4p 1p (15) 2p 1p",null,null,null,null,null,10,7,2,10,10,1,6,null,1,1,0,0,0]
[null,null,14,"ALENCON",null,null,null,null,"Non Partant",null,null,null,null,null,null,null,null,null,null,null,null,null,0,0,0,0,0,0,0,null,0,0,0,0,0]
[null,null,15,"TOP BY COCOONING",null,null,null,null,56,8,"M3","BACHELOT T.","GAUVIN JP.",null,24500,null,"7p 6p 5p 3p 1p (15) 1p 6p 8p",null,null,null,null,null,7,6,5,3,1,1,6,null,2,0,1,0,1]
[null,null,16,"BOIS CHEVALIER",null,null,null,null,56,15,"H3","HUE MLLE C.","LAMOTTE D'ARGY A.",null,16500,null,"1p 3p 2p 2p 4p",null,null,null,null,null,1,3,2,2,4,0,0,null,1,2,1,1,0]
[null,null,17,"DANI BLUE",null,null,null,null,55.5,14,"F3","RUIS S.","LE GAL R.",null,52610,null,"Ah 0p 1p 2p 2p 2p 5p 2p 5p 3p (15) 6p 1p",null,null,null,null,null,10,10,1,2,2,2,5,null,1,3,0,0,1]
[null,null,18,"NO TABOO",null,null,null,null,55.5,10,"F3","THOMAS R.","RULEC M.",null,34000,null,"6p 8p 1p 1p 5p 2p 0p 2p 4p 9p",null,null,null,null,null,6,8,1,1,5,2,10,null,2,1,0,0,1]
[null,null,null,null,null,null,null,null,null,null,null,null,null,null,null,null,null,null,null,null,null,null,null,null,null,null,null,null,null,null,"","","","",""]
[null,null,null,null,null,null,null,null,null,null,null,null,null,null,null,null,null,null,null,null,null,null,null,null,null,null,null,null,null,null,"","","","",""]
[]
[null,null,"Course n°3 - PRIX ANTIVARI"]
[null,null,"Plat - Males et Hongres - 2 ans - 1600 mètres, Corde à droite - départ vers 14h20"]
[null,null,"COURSE A CONDITIONS , PLAT, 1.600 mètres, corde à DROITE.- Pour poulains entiers et hongres de 2 ans, n'ayant jamais couru. Poids : 58 k ."]
[null,null,"Allocations : 13500 5400 4050 2700 1350"]
[null,null,"N°","Cheval",null,null,null,null,"Poids","Corde","S/A","Jockey","Entraîneur","Record","Gain","Oeill.","Dernières performances",null,null,null,null,null,"P1","P2","P3","P4","P5","P6","P7"]
[null,null,1,"PHARAONIC",null,null,null,null,58,6,"M2","CHEMINAUD V.","FABRE (S) A.",null,null,null,null,null,null,null,null,null,0,0,0,0,0,0,0,null,{"$f":"IF(W57=\"\",\"\",COUNTIF($W57:$AC57,$AE$4))","v":0},{"$f":"IF(X57=\"\",\"\",COUNTIF($W57:$AC57,$AF$4))","v":0},{"$f":"IF(Y57=\"\",\"\",COUNTIF($W57:$AC57,$AG$4))","v":0},{"$f":"IF(Z57=\"\",\"\",COUNTIF($W57:$AC57,$AH$4))","v":0},{"$f":"IF(AA57=\"\",\"\",COUNTIF($W57:$AC57,$AI$4))","v":0}]
[null,null,2,"FULL DANCE",null,null,null,null,58,3,"H2","RISPOLI U.","BONIN (S) A.",null,null,null,null,null,null,null,null,null,0,0,0,0,0,0,0,null,{"$f":"IF(W58=\"\",\"\",COUNTIF($W58:$AC58,$AE$4))","v":0},{"$f":"IF(X58=\"\",\"\",COUNTIF($W58:$AC58,$AF$4))","v":0},{"$f":"IF(Y58=\"\",\"\",COUNTIF($W58:$AC58,$AG$4))","v":0},{"$f":"IF(Z58=\"\",\"\",COUNTIF($W58:$AC58,$AH$4))","v":0},{"$f":"IF(AA58=\"\",\"\",COUNTIF($W58:$AC58,$AI$4))","v":0}]
[null,null,3,"LE NEUBOURG",null,null,null,null,58,5,"M2","LECOEUVRE C.","LELLOUCHE E.",null,null,null,null,null,null,null,null,null,0,0,0,0,0,0,0,null,0,0,0,0,0]
[null,null,4,"FARFELIN",null,null,null,null,58,8,"M2","CLAUDIC J.","MOUSNIER G.",null,null,null,null,null,null,null,null,null,0,0,0,0,0,0,0,null,0,0,0,0,0]
[null,null,5,"ACHILLE DES AIGLES",null,null,null,null,58,2,"M2","THULLIEZ T.","BARANDE BARBE MME C.",null,null,null,null,null,null,null,null,null,0,0,0,0,0,0,0,null,0,0,0,0,0]
[null,null,6,"MATT CHOP",null,null,null,null,58,7,"H2","AUGE J.","CHOPARD A.",null,null,null,null,null,null,null,null,null,0,0,0,0,0,0,0,null,0,0,0,0,0]
[null,null,7,"POLE CELESTE",null,null,null,null,58,4,"M2","THOMAS R.","COLLET (S) ROB.",null,null,null,null,null,null,null,null,null,0,0,0,0,0,0,0,null,0,0,0,0,0]
[null,null,8,"ROMAN CRACK",null,null,null,null,58,1,"M2","SOUMILLON C.","BARY (S) P.",null,null,null,null,null,null,null,null,null,0,0,0,0,0,0,0,null,0,0,0,0,0]
[null,null,null,null,null,null,null,null,null,null,null,null,null,null,null,null,null,null,null,null,null,null,null,null,null,null,null,null,null,null,"","","","",""]
[null,null,null,null,null,null,null,null,null,null,null,null,null,null,null,null,null,null,null,null,null,null,null,null,null,null,null,null,null,null,"","","","",""]
[null,null,null,null,null,null,null,null,null,null,null,null,null,null,null,null,null,null,null,null,null,null,null,null,null,null,null,null,null,null,"","","","",""]
[null,null,null,null,null,null,null,null,null,null,null,null,null,null,null,null,null,null,null,null,null,null,null,null,null,null,null,null,null,null,"","","","",""]
[null,null,null,null,null,null,null,null,null,null,null,null,null,null,null,null,null,null,null,null,null,null,null,null,null,null,null,null,null,null,"","","","",""]
[null,null,null,null,null,null,null,null,null,null,null,null,null,null,null,null,null,null,null,null,null,null,null,null,null,null,null,null,null,null,"","","","",""]
[null,null,null,null,null,null,null,null,null,null,null,null,null,null,null,null,null,null,null,null,null,null,null,null,null,null,null,null,null,null,"","","","",""]
[null,null,null,null,null,null,null,null,null,null,null,null,null,null,null,null,null,null,null,null,null,null,null,null,null,null,null,null,null,null,"","","","",""]
[null,null,null,null,null,null,null,null,null,null,null,null,null,null,null,null,null,null,null,null,null,null,null,null,null,null,null,null,null,null,"","","","",""]
[null,null,null,null,null,null,null,null,null,null,null,null,null,null,null,null,null,null,null,null,null,null,null,null,null,null,null,null,null,null,"","","","",""]
[null,null,null,null,null,null,null,null,null,null,null,null,null,null,null,null,null,null,null,null,null,null,null,null,null,null,null,null,null,null,"","","","",""]
[null,null,null,null,null,null,null,null,null,null,null,null,null,null,null,null,null,null,null,null,null,null,null,null,null,null,null,null,null,null,"","","","",""]
[]
[null,null,"Course n°4 - PRIX DOUVE"]
[null,null,"Plat - femelles - 2 ans - 1600 mètres, Corde à droite - départ vers 14h50"]
[null,null,"COURSE A CONDITIONS , PLAT, 1.600 mètres, corde à DROITE.- Pour pouliches de 2 ans, n'ayant jamais couru. Poids : 57 k ."]
[null,null,"Allocations : 13500 5400 4050 2700 1350"]
[null,null,"N°","Cheval",null,null,null,null,"Poids","Corde","S/A","Jockey","Entraîneur","Record","Gain","Oeill.","Dernières performances",null,null,null,null,null,"P1","P2","P3","P4","P5","P6","P7"]
[null,null,1,"CANNDERA",null,null,null,null,57,1,"F2","SOUMILLON C.","DE ROYER DUPRE A.",null,null,null,null,null,null,null,null,null,0,0,0,0,0,0,0,null,{"$f":"IF(W83=\"\",\"\",COUNTIF($W83:$AC83,$AE$4))","v":0},{"$f":"IF(X83=\"\",\"\",COUNTIF($W83:$AC83,$AF$4))","v":0},{"$f":"IF(Y83=\"\",\"\",COUNTIF($W83:$AC83,$AG$4))","v":0},{"$f":"IF(Z83=\"\",\"\",COUNTIF($W83:$AC83,$AH$4))","v":0},{"$f":"IF(AA83=\"\",\"\",COUNTIF($W83:$AC83,$AI$4))","v":0}]
[null,null,2,"BEBE D'AMOUR",null,null,null,null,57,6,"F2","HARDOUIN E.","ARTU (S) JY.",null,null,null,null,null,null,null,null,null,0,0,0,0,0,0,0,null,{"$f":"IF(W84=\"\",\"\",COUNTIF($W84:$AC84,$AE$4))","v":0},{"$f":"IF(X84=\"\",\"\",COUNTIF($W84:$AC84,$AF$4))","v":0},{"$f":"IF(Y84=\"\",\"\",COUNTIF($W84:$AC84,$AG$4))","v":0},{"$f":"IF(Z84=\"\",\"\",COUNTIF($W84:$AC84,$AH$4))","v":0},{"$f":"IF(AA84=\"\",\"\",COUNTIF($W84:$AC84,$AI$4))","v":0}]
[null,null,3,"PEACE IN MOTION",null,null,null,null,57,11,"F2","LERNER M.","HICKST W.",null,null,null,null,null,null,null,null,null,0,0,0,0,0,0,0,null,0,0,0,0,0]
[null,null,4,"WELSCH HARMONY",null,null,null,null,57,12,"F2","LECOEUVRE C.","DELCHER SANCHEZ M.",null,null,null,null,null,null,null,null,null,0,0,0,0,0,0,0,null,0,0,0,0,0]
[null,null,5,"HEURISTIQUE",null,null,null,null,57,8,"F2","BOUDOT PC.","GRAFFARD (S) FH.",null,null,null,null,null,null,null,null,null,0,0,0,0,0,0,0,null,0,0,0,0,0]
[null,null,6,"ALACOVIA",null,null,null,null,57,3,"F2","THULLIEZ T.","BARY (S) P.",null,null,null,null,null,null,null,null,null,0,0,0,0,0,0,0,null,0,0,0,0,0]
[null,null,7,"LADY MONTDORE",null,null,null,null,57,7,"F2","BARZALONA M.","FABRE (S) A.",null,null,null,null,null,null,null,null,null,0,0,0,0,0,0,0,null,0,0,0,0,0]
[null,null,8,"AROMA",null,null,null,null,57,10,"F2","CHEMINAUD V.","DELZANGLES M.",null,null,null,null,null,null,null,null,null,0,0,0,0,0,0,0,null,0,0,0,0,0]
[null,null,9,"HOLLIVIA",null,null,null,null,57,5,"F2","PASQUIER S.","GOURRAUD (S) Y.",null,null,null,null,null,null,null,null,null,0,0,0,0,0,0,0,null,0,0,0,0,0]
[null,null,10,"FYNBOS",null,null,null,null,57,9,"F2","BENOIST G.","DELZANGLES M.",null,null,null,null,null,null,null,null,null,0,0,0,0,0,0,0,null,0,0,0,0,0]
[null,null,11,"MUTHLA",null,null,null,null,57,2,"F2","BACHELOT T.","BEGUIGNE JM.",null,null,null,null,null,null,null,null,null,0,0,0,0,0,0,0,null,0,0,0,0,0]
[null,null,12,"MAAYA",null,null,null,null,57,4,"F2","BADEL ALXI.","BOLLACK-BADEL M.",null,null,null,null,null,null,null,null,null,0,0,0,0,0,0,0,null,0,0,0,0,0]
[null,null,null,null,null,null,null,null,null,null,null,null,null,null,null,null,null,null,null,null,null,null,null,null,null,null,null,null,null,null,"","","","",""]
[null,null,null,null,null,null,null,null,null,null,null,null,null,null,null,null,null,null,null,null,null,null,null,null,null,null,null,null,null,null,"","","","",""]
[null,null,null,null,null,null,null,null,null,null,null,null,null,null,null,null,null,null,null,null,null,null,null,null,null,null,null,null,null,null,"","","","",""]
[null,null,null,null,null,null,null,null,null,null,null,null,null,null,null,null,null,null,null,null,null,null,null,null,null,null,null,null,null,null,"","","","",""]
[null,null,null,null,null,null,null,null,null,null,null,null,null,null,null,null,null,null,null,null,null,null,null,null,null,null,null,null,null,null,"","","","",""]
[null,null,null,null,null,null,null,null,null,null,null,null,null,null,null,null,null,null,null,null,null,null,null,null,null,null,null,null,null,null,"","","","",""]
[null,null,null,null,null,null,null,null,null,null,null,null,null,null,null,null,null,null,null,null,null,null,null,null,null,null,null,null,null,null,"","","","",""]
[null,null,null,null,null,null,null,null,null,null,null,null,null,null,null,null,null,null,null,null,null,null,null,null,null,null,null,null,null,null,"","","","",""]
[]
[null,null,"Course n°5 - PRIX DE BOIS D'ARCY"]
[null,null,"Plat - A Réclamer - 2 ans - 2000 mètres, Corde à gauche - départ vers 15h20"]
[null,null,"A RECLAMER , PLAT, 2.000 mètres, corde à GAUCHE.- Pour poulains entiers, hongres et pouliches de 2 ans, mis à réclamer pour 11.000, 14.000 ou 17.000. Poids : 56 k . Les chevaux mis à réclamer pour 14.000 \r\nporteront 1 k.1/2 pour 17.000, 3 k. En outre, les chevaux ayant, depuis le 1er mai 2016 inclus, reçu une allocation de 8.500 ou une gagné une course F porteront 2 k. plusieurs allocations de 8.500 ou \r\ngagné plusieurs courses F, 4 k."]
[null,null,"Allocations : 9500 3800 2850 1900 950"]
[null,null,"N°","Cheval",null,null,null,null,"Poids","Corde","S/A","Jockey","Entraîneur","Record","Gain","Oeill.","Dernières performances",null,null,null,null,null,"P1","P2","P3","P4","P5","P6","P7"]
[null,null,1,"EFICHOPE",null,null,null,null,59.5,4,"F2","LECOEUVRE C.","LE GAL R.",null,39500,"A","6p 2p 0p 1p 5p 1p 2p 3p 1p 5p 3p 0p",null,null,null,null,null,6,2,10,1,5,1,2,null,{"$f":"IF(W109=\"\",\"\",COUNTIF($W109:$AC109,$AE$4))","v":2},{"$f":"IF(X109=\"\",\"\",COUNTIF($W109:$AC109,$AF$4))","v":2},{"$f":"IF(Y109=\"\",\"\",COUNTIF($W109:$AC109,$AG$4))","v":0},{"$f":"IF(Z109=\"\",\"\",COUNTIF($W109:$AC109,$AH$4))","v":0},{"$f":"IF(AA109=\"\",\"\",COUNTIF($W109:$AC109,$AI$4))","v":1}]
[null,null,2,"RAJSA CARD",null,null,null,null,59,12,"H2","HARDOUIN E.","MARTINON C. (E1)",null,1150,null,"9p 7p 5p 7p",null,null,null,null,null,9,7,5,7,0,0,0,null,{"$f":"IF(W110=\"\",\"\",COUNTIF($W110:$AC110,$AE$4))","v":0},{"$f":"IF(X110=\"\",\"\",COUNTIF($W110:$AC110,$AF$4))","v":0},{"$f":"IF(Y110=\"\",\"\",COUNTIF($W110:$AC110,$AG$4))","v":0},{"$f":"IF(Z110=\"\",\"\",COUNTIF($W110:$AC110,$AH$4))","v":0},{"$f":"IF(AA110=\"\",\"\",COUNTIF($W110:$AC110,$AI$4))","v":1}]
[null,null,3,"DISCO FLASH",null,null,null,null,59,8,"H2","BACHELOT T.","BOUTIN (S) M.",null,18100,"A","3p 4p 2p 5p 7p 6p 5p 5p 1p",null,null,null,null,null,3,4,2,5,7,6,5,null,0,1,1,1,2]
[null,null,4,"FLORIDA DREAM",null,null,null,null,58,9,"F2","PASQUIER S.","GOURRAUD (S) Y.",null,16290,null,"6p 1p 5p",null,null,null,null,null,6,1,5,0,0,0,0,null,1,0,0,0,1]
[null,null,5,"LA PLAYA",null,null,null,null,57.5,3,"F2","CAMPOS R.","BOUTIN (S) C.",null,null,null,"7p",null,null,null,null,null,7,0,0,0,0,0,0,null,0,0,0,0,0]
[null,null,6,"SCARY CHOP",null,null,null,null,57.5,7,"M2","AUGE J.","CHOPARD A.",null,2950,"A","5p 4p 9p 8p",null,null,null,null,null,5,4,9,8,0,0,0,null,0,0,0,1,1]
[null,null,7,"HARASENGA DRALLIV",null,null,null,null,57.5,10,"F2","SANTIAGO MLLE D.","MARTINON C. (E1)",null,3700,"A","5p 4p 9p 0p 0p 4p 0p 6p 9p",null,null,null,null,null,5,4,9,10,10,4,10,null,0,0,0,2,1]
[null,null,8,"SORAL DE KERZEL",null,null,null,null,57.5,11,"H2","MOISAN J.","VIBERT MME E.",null,null,null,"7p 8p",null,null,null,null,null,7,8,0,0,0,0,0,null,0,0,0,0,0]
[null,null,9,"CIMA JELOIS",null,null,null,null,56,6,"F2","CLAUDIC J.","COLLET (S) ROB.",null,3050,"A","0p 6p 0p 0p 4p 8p 5p 9p",null,null,null,null,null,10,6,10,10,4,8,5,null,0,0,0,1,1]
[null,null,10,"SALUT FRIPOUILLE",null,null,null,null,56,13,"H2","HAMELIN A.","JESUS S.",null,null,null,"8p 7p 7p 6p 7p",null,null,null,null,null,8,7,7,6,7,0,0,null,0,0,0,0,0]
[null,null,11,"TURDA",null,null,null,null,56,1,"F2","BENOIST G.","FOUIN (S) Y.",null,null,null,"8p",null,null,null,null,null,8,0,0,0,0,0,0,null,0,0,0,0,0]
[null,null,12,"LANGUE DE VIPERE",null,null,null,null,54.5,2,"F2","LARENAUDIE N.","BERTRAN DE BALANDA (S) J.",null,null,"X","9p 9p",null,null,null,null,null,9,9,0,0,0,0,0,null,0,0,0,0,0]
[null,null,13,"LANAKILL",null,null,null,null,54.5,5,"F2","THOMAS R.","TOUX JV.",null,null,null,"0p 9p 0p 0p",null,null,null,null,null,10,9,10,10,0,0,0,null,0,0,0,0,0]
[null,null,null,null,null,null,null,null,null,null,null,null,null,null,null,null,null,null,null,null,null,null,null,null,null,null,null,null,null,null,"","","","",""]
[null,null,null,null,null,null,null,null,null,null,null,null,null,null,null,null,null,null,null,null,null,null,null,null,null,null,null,null,null,null,"","","","",""]
[null,null,null,null,null,null,null,null,null,null,null,null,null,null,null,null,null,null,null,null,null,null,null,null,null,null,null,null,null,null,"","","","",""]
[null,null,null,null,null,null,null,null,null,null,null,null,null,null,null,null,null,null,null,null,null,null,null,null,null,null,null,null,null,null,"","","","",""]
[null,null,null,null,null,null,null,null,null,null,null,null,null,null,null,null,null,null,null,null,null,null,null,null,null,null,null,null,null,null,"","","","",""]
[null,null,null,null,null,null,null,null,null,null,null,null,null,null,null,null,null,null,null,null,null,null,null,null,null,null,null,null,null,null,"","","","",""]
[null,null,null,null,null,null,null,null,null,null,null,null,null,null,null,null,null,null,null,null,null,null,null,null,null,null,null,null,null,null,"","","","",""]
[]
[null,null,"Course n°6 - PRIX DOUVE"]
[null,null,"Plat - femelles - 2 ans - 1600 mètres, Corde à droite - départ vers 15h50"]
[null,null,"COURSE A CONDITIONS , PLAT, 1.600 mètres, corde à DROITE.- Pour pouliches de 2 ans, n'ayant jamais couru. Poids : 57 k ."]
[null,null,"Allocations : 13500 5400 4050 2700 1350"]
[null,null,"N°","Cheval",null,null,null,null,"Poids","Corde","S/A","Jockey","Entraîneur","Record","Gain","Oeill.","Dernières performances",null,null,null,null,null,"P1","P2","P3","P4","P5","P6","P7"]
[null,null,1,"MUSAWAAH",null,null,null,null,57,3,"F2","LEMAITRE A.","HEAD (S) F.",null,null,null,null,null,null,null,null,null,0,0,0,0,0,0,0,null,{"$f":"IF(W135=\"\",\"\",COUNTIF($W135:$AC135,$AE$4))","v":0},{"$f":"IF(X135=\"\",\"\",COUNTIF($W135:$AC135,$AF$4))","v":0},{"$f":"IF(Y135=\"\",\"\",COUNTIF($W135:$AC135,$AG$4))","v":0},{"$f":"IF(Z135=\"\",\"\",COUNTIF($W135:$AC135,$AH$4))","v":0},{"$f":"IF(AA135=\"\",\"\",COUNTIF($W135:$AC135,$AI$4))","v":0}]
[null,null,2,"CORVILLE",null,null,null,null,57,1,"F2","DEMURO C.","DELZANGLES M.",null,null,null,null,null,null,null,null,null,0,0,0,0,0,0,0,null,{"$f":"IF(W136=\"\",\"\",COUNTIF($W136:$AC136,$AE$4))","v":0},{"$f":"IF(X136=\"\",\"\",COUNTIF($W136:$AC136,$AF$4))","v":0},{"$f":"IF(Y136=\"\",\"\",COUNTIF($W136:$AC136,$AG$4))","v":0},{"$f":"IF(Z136=\"\",\"\",COUNTIF($W136:$AC136,$AH$4))","v":0},{"$f":"IF(AA136=\"\",\"\",COUNTIF($W136:$AC136,$AI$4))","v":0}]
[null,null,3,"PANGOLIN",null,null,null,null,57,10,"F2","CHEMINAUD V.","DELZANGLES M.",null,null,null,null,null,null,null,null,null,0,0,0,0,0,0,0,null,0,0,0,0,0]
[null,null,4,"BE FREE",null,null,null,null,57,9,"F2","THOMAS R.","COLLET (S) ROB.",null,null,null,null,null,null,null,null,null,0,0,0,0,0,0,0,null,0,0,0,0,0]
[null,null,5,"VALLEY RIVER",null,null,null,null,57,6,"F2","LECOEUVRE C.","NAIM MME MC.",null,null,null,null,null,null,null,null,null,0,0,0,0,0,0,0,null,0,0,0,0,0]
[null,null,6,"QUEEN'S DOMINION",null,null,null,null,57,7,"F2","BARZALONA M.","FABRE (S) A.",null,null,null,null,null,null,null,null,null,0,0,0,0,0,0,0,null,0,0,0,0,0]
[null,null,7,"TERRE",null,null,null,null,57,2,"F2","JARNET T.","HEAD-MAAREK MME C.",null,null,null,null,null,null,null,null,null,0,0,0,0,0,0,0,null,0,0,0,0,0]
[null,null,8,"YANLING",null,null,null,null,57,11,"F2","HAMELIN A.","PALUSSIERE M.",null,null,null,null,null,null,null,null,null,0,0,0,0,0,0,0,null,0,0,0,0,0]
[null,null,9,"CATALOUNIYA",null,null,null,null,57,8,"F2","MOREAU A.","RENK MLLE B.",null,null,null,null,null,null,null,null,null,0,0,0,0,0,0,0,null,0,0,0,0,0]
[null,null,10,"SRI PRADA",null,null,null,null,57,5,"F2","RISPOLI U.","DOLEUZE G.",null,null,null,null,null,null,null,null,null,0,0,0,0,0,0,0,null,0,0,0,0,0]
[null,null,11,"GUERRIERE",null,null,null,null,57,4,"F2","GUYON M.","LAFFON-PARIAS C.",null,null,null,null,null,null,null,null,null,0,0,0,0,0,0,0,null,0,0,0,0,0]
[null,null,null,null,null,null,null,null,null,null,null,null,null,null,null,null,null,null,null,null,null,null,null,null,null,null,null,null,null,null,"","","","",""]
[null,null,null,null,null,null,null,null,null,null,null,null,null,null,null,null,null,null,null,null,null,null,null,null,null,null,null,null,null,null,"","","","",""]
[null,null,null,null,null,null,null,null,null,null,null,null,null,null,null,null,null,null,null,null,null,null,null,null,null,null,null,null,null,null,"","","","",""]
[null,null,null,null,null,null,null,null,null,null,null,null,null,null,null,null,null,null,null,null,null,null,null,null,null,null,null,null,null,null,"","","","",""]
[null,null,null,null,null,null,null,null,null,null,null,null,null,null,null,null,null,null,null,null,null,null,null,null,null,null,null,null,null,null,"","","","",""]
[null,null,null,null,null,null,null,null,null,null,null,null,null,null,null,null,null,null,null,null,null,null,null,null,null,null,null,null,null,null,"","","","",""]
[null,null,null,null,null,null,null,null,null,null,null,null,null,null,null,null,null,null,null,null,null,null,null,null,null,null,null,null,null,null,"","","","",""]
[null,null,null,null,null,null,null,null,null,null,null,null,null,null,null,null,null,null,null,null,null,null,null,null,null,null,null,null,null,null,"","","","",""]
[null,null,null,null,null,null,null,null,null,null,null,null,null,null,null,null,null,null,null,null,null,null,null,null,null,null,null,null,null,null,"","","","",""]
[]
[null,null,"Course n°7 - PRIX DU GRAND MORIN"]
[null,null,"Plat - Handicap Course E - 4 ans - 2100 mètres, Corde à gauche - Ref: +32 - départ vers 16h25"]
[null,null,"HANDICAP CATEG DIVISE, Réf. +320 , PLAT, 2.100 mètres, corde à GAUCHE.- Pour poulains entiers, hongres et pouliches de 4 ans, n'ayant pas, cette année, reçu 15.000 en victoires et places.Seront qualifiés \r\ndans cette épreuve, les chevaux auxquels le handicapeur aura attribué une valeur égale ou inférieure à 28 k. La référence de cette épreuve sera éventuellementremontée à la déclaration des partants probables, \r\nafin que le poids le plus élevé soit fixé à 60 k."]
[null,null,"Allocations : 10500 4200 3150 2100 1050"]
[null,null,"N°","Cheval",null,null,null,null,"Poids","Corde","S/A","Jockey","Entraîneur","Record","Gain","Oeill.","Dernières performances",null,null,null,null,null,"P1","P2","P3","P4","P5","P6","P7",null,{"$f":"IF(W160=\"\",\"\",COUNTIF($W160:$AC160,$AE$4))","v":0},{"$f":"IF(X160=\"\",\"\",COUNTIF($W160:$AC160,$AF$4))","v":0},{"$f":"IF(Y160=\"\",\"\",COUNTIF($W160:$AC160,$AG$4))","v":0},{"$f":"IF(Z160=\"\",\"\",COUNTIF($W160:$AC160,$AH$4))","v":0},{"$f":"IF(AA160=\"\",\"\",COUNTIF($W160:$AC160,$AI$4))","v":0}]
[null,null,1,"GRANADA",null,null,null,null,60,11,"F4","BERTO M.","KOBAYASHI (S) S.",null,26900,"A","2p 6p 1p 2p 5p 6p 0p 6p 9p (15) 5p 1p 4p",null,null,null,null,null,2,6,1,2,5,6,10,null,{"$f":"IF(W161=\"\",\"\",COUNTIF($W161:$AC161,$AE$4))","v":1},{"$f":"IF(X161=\"\",\"\",COUNTIF($W161:$AC161,$AF$4))","v":2},{"$f":"IF(Y161=\"\",\"\",COUNTIF($W161:$AC161,$AG$4))","v":0},{"$f":"IF(Z161=\"\",\"\",COUNTIF($W161:$AC161,$AH$4))","v":0},{"$f":"IF(AA161=\"\",\"\",COUNTIF($W161:$AC161,$AI$4))","v":1}]
[null,null,2,"DOUCEUR PERDUE",null,null,null,null,60,12,"F4","PASQUIER S.","PHELIPPON JUL.",null,28700,null,"1p 2p 2p 1h 3h Th 7h 6p 4p (15) 3p 7p 4p",null,null,null,null,null,1,2,2,1,3,10,7,null,2,2,1,0,0]
[null,null,3,"GEORDIE GEORGE",null,null,null,null,59.5,7,"H4","RISPOLI U.","LYON E.",null,30822,null,"4p 0p 3p 8p 4p 8p 2p 6p 0p 7p (15) 9p 15p",null,null,null,null,null,4,10,3,8,4,8,2,null,0,1,1,2,0]
[null,null,4,"MAKFLAWLESS",null,null,null,null,58.5,9,"H4","BARBAUD K.","PUITG MLLE T.",null,21600,null,"0p 0p 0p 0p 6p 1p 2p 2p 0p (15) 0p 0p 0p",null,null,null,null,null,10,10,10,10,6,1,2,null,1,1,0,0,0]
[null,null,5,"GRISNYALI",null,null,null,null,58,1,"H4","BACHELOT T.","CHATELAIN P.",null,19600,null,"6p 2p 9p (15) 7p 2p 6p 3p 2p 8p 3p 3p 4p",null,null,null,null,null,6,2,9,7,2,6,3,null,0,2,1,0,0]
[null,null,6,"CAMPIONE",null,null,null,null,57,8,"H4","CAMPOS R.","BOUTIN (S) C.",null,35100,null,"0p 0p 5p 6p 0p 5p 5p 6p 4p (15) 4p 5p 3p",null,null,null,null,null,10,10,5,6,10,5,5,null,0,0,0,0,3]
[null,null,7,"MELCHOPE",null,null,null,null,57,3,"F4","CLAUDIC J.","GRIZON F.",null,43650,"A","5p 7p 4p 5p 0p 9p 1p 1p 0p (15) 9p 6p 2p",null,null,null,null,null,5,7,4,5,10,9,1,null,1,0,0,1,2]
[null,null,8,"KONIG CHOUCHEN",null,null,null,null,57,15,"H4","BOUDOT PC.","REGLEY O.",null,14400,"A","4p 7p 2p 4p 3p 7p 7p 2p 0p 2p 6p 3p",null,null,null,null,null,4,7,2,4,3,7,7,null,0,1,1,2,0]
[null,null,9,"CIARATZA",null,null,null,null,56.5,5,"H4","DELALANDE M.","ADET (S) S.",null,11200,"A","0p 4p 4p 6p 1p 3p 2p 9p (15) 0p 0p",null,null,null,null,null,10,4,4,6,1,3,2,null,1,1,1,2,0]
[null,null,10,"BACCHUS DES AIGLES",null,null,null,null,56,16,"H4","MONTEIRO J.","BARANDE BARBE MME C.",null,42600,"A","6p 4p 4p 1p 2p 8p 0p 7p 5p 0p 7p 0p",null,null,null,null,null,6,4,4,1,2,8,10,null,1,1,0,2,0]
[null,null,11,"MOLAUKEV",null,null,null,null,56,10,"M4","LEMAITRE A.","CAULLERY N.",null,26800,null,"0p 0p 7p 2p 5p 3p 4p 0p (15) 8p 4p 0p 0p",null,null,null,null,null,10,10,7,2,5,3,4,null,0,1,1,1,1]
[null,null,12,"AMBITA",null,null,null,null,"Non Partant",null,null,null,null,null,null,null,null,null,null,null,null,null,0,0,0,0,0,0,0,null,0,0,0,0,0]
[null,null,13,"JETON",null,null,null,null,56,14,"H4","BENOIST G.","BOUTIN (S) M.",null,14900,null,"0p 7p 3p (15) 0p 3p 3p 4p 0p 3p 7p (14) 4p",null,null,null,null,null,10,7,3,10,3,3,4,null,0,0,3,1,0]
[null,null,14,"WIZARD WOLF",null,null,null,null,56,2,"M4","THOMAS R.","BOCSKAI MME C.",null,18800,null,"0p 6p 4p 4p 5p 4p 7p 9p 8p 6p (15) 0p 7p",null,null,null,null,null,10,6,4,4,5,4,7,null,0,0,0,3,1]
[null,null,15,"MEME EN REVE",null,null,null,null,55.5,4,"H4","BARZALONA M.","PROD'HOMME D.",null,8350,"X","6p 9p Ap 9p 3p 9p 4p 0p 0p (15) 6p 3p 5p",null,null,null,null,null,6,9,10,9,3,9,4,null,0,0,1,1,0]
[null,null,16,"ABRAXAS STONE",null,null,null,null,55,13,"H4","HARDOUIN E.","MAILLARD M.",null,26300,"A","0p 0p 0p 6p 2p 0p 2p 3p 6p 7p 8p 6p",null,null,null,null,null,10,10,10,6,2,10,2,null,0,2,0,0,0]
[null,null,null,null,null,null,null,null,null,null,null,null,null,null,null,null,null,null,null,null,null,null,null,null,null,null,null,null,null,null,"","","","",""]
[null,null,null,null,null,null,null,null,null,null,null,null,null,null,null,null,null,null,null,null,null,null,null,null,null,null,null,null,null,null,"","","","",""]
[null,null,null,null,null,null,null,null,null,null,null,null,null,null,null,null,null,null,null,null,null,null,null,null,null,null,null,null,null,null,"","","","",""]
[]
[]
[null,null,"Course n°8 - PRIX DU PETIT MORIN"]
[null,null,"Plat - Handicap Course E - 4 ans - 2100 mètres, Corde à gauche - Ref: +37 - départ vers 16h55"]
[null,null,"HANDICAP CATEG DIVISE, Réf. +370 , PLAT, 2.100 mètres, corde à GAUCHE.- Pour poulains entiers, hongres et pouliches de 4 ans , n'ayant pas, cette année, reçu 15.000 en victoires et places.Seront qualifiés \r\ndans cette épreuve, les chevaux auxquels le handicapeur aura attribué une valeur égale ou inférieure à 28 k. Les poids de cette épreuve seront remontés après division à la clôture des partants, afin que \r\nle poids le plus élevé soit fixé à 60 k."]
[null,null,"Allocations : 9500 3800 2850 1900 950"]
[null,null,"N°","Cheval",null,null,null,null,"Poids","Corde","S/A","Jockey","Entraîneur","Record","Gain","Oeill.","Dernières performances",null,null,null,null,null,"P1","P2","P3","P4","P5","P6","P7"]
[null,null,1,"FAON D'JOE",null,null,null,null,60,11,"H4","BACHELOT T.","BRAEM L. (E1)",null,5350,null,"3p 1p (15) 7p 0h 0p 7p 7p 9p 0p",null,null,null,null,null,3,1,7,10,10,7,7,null,{"$f":"IF(W187=\"\",\"\",COUNTIF($W187:$AC187,$AE$4))","v":1},{"$f":"IF(X187=\"\",\"\",COUNTIF($W187:$AC187,$AF$4))","v":0},{"$f":"IF(Y187=\"\",\"\",COUNTIF($W187:$AC187,$AG$4))","v":1},{"$f":"IF(Z187=\"\",\"\",COUNTIF($W187:$AC187,$AH$4))","v":0},{"$f":"IF(AA187=\"\",\"\",COUNTIF($W187:$AC187,$AI$4))","v":0}]
[null,null,2,"SILMINZA",null,null,null,null,59,1,"F4","AUGE J.","BOUTIN JJ.",null,39100,"X","0p 0p 0p 4p 2p 5p 6p 6p 3p 3p 3p 3p",null,null,null,null,null,10,10,10,4,2,5,6,null,{"$f":"IF(W188=\"\",\"\",COUNTIF($W188:$AC188,$AE$4))","v":0},{"$f":"IF(X188=\"\",\"\",COUNTIF($W188:$AC188,$AF$4))","v":1},{"$f":"IF(Y188=\"\",\"\",COUNTIF($W188:$AC188,$AG$4))","v":0},{"$f":"IF(Z188=\"\",\"\",COUNTIF($W188:$AC188,$AH$4))","v":1},{"$f":"IF(AA188=\"\",\"\",COUNTIF($W188:$AC188,$AI$4))","v":1}]
[null,null,3,"BLISS IN THE CITY",null,null,null,null,59,13,"H4","LEBRETON E.","VERMEULEN (S) F.",null,21300,"A","2p 1p 5p 0p 7p 8p 0p 0p 0p (15) 5p 6p 7p",null,null,null,null,null,2,1,5,10,7,8,10,null,1,1,0,0,1]
[null,null,4,"TALKIN'BLUES",null,null,null,null,59,9,"H4","BERTO M.","BEAUNEZ B.",null,14400,"A","0p Ah 0p 0p 6p 5p 0p (15) 6h 8h 0p 7p 7p",null,null,null,null,null,10,10,10,10,6,5,10,null,0,0,0,0,1]
[null,null,5,"ANNA LOU",null,null,null,null,59,2,"F4","CARAMANOLIS A.","DRIEUX B.",null,1800,null,"3p 6p 6p 0p 7p 7p 8p 0p",null,null,null,null,null,3,6,6,10,7,7,8,null,0,0,1,0,0]
[null,null,6,"CHARLY GREEN",null,null,null,null,58.5,5,"H4","MASSIN MLLE A.","LEBLANC P.",null,19700,"X","0p 2p 8p 4p 9p 6p 9p 0p 6p 0p 6p 0p",null,null,null,null,null,10,2,8,4,9,6,9,null,0,1,0,1,0]
[null,null,7,"WALINA",null,null,null,null,"Non Partant",null,null,null,null,null,null,null,null,null,null,null,null,null,0,0,0,0,0,0,0,null,0,0,0,0,0]
[null,null,8,"PLUME D'OUTARDE",null,null,null,null,58,8,"F4","THOMAS R.","TOUX JV.",null,35550,null,"8p 0p 5p 4p 0p 4p 0p 8p 1p 1p 2p 9p",null,null,null,null,null,8,10,5,4,10,4,10,null,0,0,0,2,1]
[null,null,9,"LA JUBANAISE",null,null,null,null,58,10,"F4","BOUDOT PC.","LEENDERS GAB.",null,11350,"A","7p 4p 7p 6p 7p 3p (15) 0p 8p 4p 3p 1p 5s",null,null,null,null,null,7,4,7,6,7,3,10,null,0,0,1,1,0]
[null,null,10,"MAMISTIC",null,null,null,null,56,4,"F4","LECOEUVRE C.","LENOGUE P.",null,1400,"A","0p 0p 8p 5p Ah Ah 0h 7p 4p",null,null,null,null,null,10,10,8,5,10,10,10,null,0,0,0,0,1]
[null,null,11,"SHOULD I DREAM",null,null,null,null,55.5,15,"H4","PASQUIER S.","LEMERCIER (S) F.",null,12850,null,"6p 0p 3p 3p 0p 0p 0p 5p 4p 0p Ap (15) 6p",null,null,null,null,null,6,10,3,3,10,10,10,null,0,0,2,0,0]
[null,null,12,"CHECK LIST LANLORE",null,null,null,null,55,3,"H4","SANTIAGO MLLE D.","PRUNET-FOCH MME M.",null,7350,null,"5p 2p 4p 3p 7p 4p 3p 7p 6p 7p 0p 9p",null,null,null,null,null,5,2,4,3,7,4,3,null,0,1,2,2,1]
[null,null,13,"MARSHAL MALPIC",null,null,null,null,54.5,14,"H4","BARNIER MLLE D.","BRIFFAULT G.",null,13650,"X","6p 8p 4p 5p 3p Dp 5p 7p 0p 9p 0p 0p",null,null,null,null,null,6,8,4,5,3,10,5,null,0,0,1,1,2]
[null,null,14,"PATONG",null,null,null,null,54,7,"H4","BADEL ALXI.","TROUVE MME AC. (E1)",null,29900,null,"2p 0p 6p 5p 0p 9p 0p 6p (15) 0p 9p 5p 7p",null,null,null,null,null,2,10,6,5,10,9,10,null,0,1,0,0,1]
[null,null,15,"WHY WHIPPING",null,null,null,null,52,6,"F4","CLAUDIC J.","COLLET (S) ROB.",null,30050,"X","8p 2p 9p 0p 0p 9p 5p 0p 0p 0p 0p 8p",null,null,null,null,null,8,2,9,10,10,9,5,null,0,1,0,0,1]
[null,null,null,null,null,null,null,null,null,null,null,null,null,null,null,null,null,null,null,null,null,null,null,null,null,null,null,null,null,null,"","","","",""]
[null,null,null,null,null,null,null,null,null,null,null,null,null,null,null,null,null,null,null,null,null,null,null,null,null,null,null,null,null,null,"","","","",""]
[null,null,null,null,null,null,null,null,null,null,null,null,null,null,null,null,null,null,null,null,null,null,null,null,null,null,null,null,null,null,"","","","",""]
[null,null,null,null,null,null,null,null,null,null,null,null,null,null,null,null,null,null,null,null,null,null,null,null,null,null,null,null,null,null,"","","","",""]
[null,null,null,null,null,null,null,null,null,null,null,null,null,null,null,null,null,null,null,null,null,null,null,null,null,null,null,null,null,null,"","","","",""]
[]
[null,null,"Course n°9 - PRIX DE CHEMOITOU"]
[null,null,"Plat - Handicap Course E - 3 ans - 2400 mètres, Corde à gauche - Ref: +25,5 - départ vers 17h25"]
[null,null,"HANDICAP DIVISE, Réf. +255 , PLAT, 2.400 mètres, corde à GAUCHE.- Pour poulains entiers, hongres et pouliches de 3 ans ."]
[null,null,"Allocations : 14100 5700 4200 2700 1650 1050 600"]
[null,null,"N°","Cheval",null,null,null,null,"Poids","Corde","S/A","Jockey","Entraîneur","Record","Gain","Oeill.","Dernières performances",null,null,null,null,null,"P1","P2","P3","P4","P5","P6","P7"]
[null,null,1,"RAISING RIVER",null,null,null,null,60,10,"M3","PASQUIER S.","LEENDERS (S) E&G.",null,30000,"X","6p 0p 1p 4p 1p 6p 5p 1p (15) 0p",null,null,null,null,null,6,10,1,4,1,6,5,null,{"$f":"IF(W213=\"\",\"\",COUNTIF($W213:$AC213,$AE$4))","v":2},{"$f":"IF(X213=\"\",\"\",COUNTIF($W213:$AC213,$AF$4))","v":0},{"$f":"IF(Y213=\"\",\"\",COUNTIF($W213:$AC213,$AG$4))","v":0},{"$f":"IF(Z213=\"\",\"\",COUNTIF($W213:$AC213,$AH$4))","v":1},{"$f":"IF(AA213=\"\",\"\",COUNTIF($W213:$AC213,$AI$4))","v":1}]
[null,null,2,"SAOSEO",null,null,null,null,59.5,3,"H3","BOUDOT PC.","GAUVIN JP.",null,34650,"A","4p 1p 3p 3p 2p 4p 2p 2p 0p 5p (15) 0p 0p",null,null,null,null,null,4,1,3,3,2,4,2,null,{"$f":"IF(W214=\"\",\"\",COUNTIF($W214:$AC214,$AE$4))","v":1},{"$f":"IF(X214=\"\",\"\",COUNTIF($W214:$AC214,$AF$4))","v":2},{"$f":"IF(Y214=\"\",\"\",COUNTIF($W214:$AC214,$AG$4))","v":2},{"$f":"IF(Z214=\"\",\"\",COUNTIF($W214:$AC214,$AH$4))","v":2},{"$f":"IF(AA214=\"\",\"\",COUNTIF($W214:$AC214,$AI$4))","v":0}]
[null,null,3,"ALLEGRA DESIO",null,null,null,null,59.5,15,"F3","BADEL ALXI.","VOLLMER MLLE Y.",null,22900,null,"9p 8p 1p 1p 3p 0p (15) 0p 6p 9p",null,null,null,null,null,9,8,1,1,3,10,10,null,2,0,1,0,0]
[null,null,4,"VASY SAKHEE",null,null,null,null,59.5,13,"F3","THULLIEZ T.","BARBEROT (S) Y.",null,20250,null,"0p 1p 3p 2p 2p",null,null,null,null,null,10,1,3,2,2,0,0,null,1,2,1,0,0]
[null,null,5,"BRIGHT DINASTY",null,null,null,null,59.5,18,"F3","BARILLE Y.","LEENDERS N.",null,18200,null,"3p 0p 1p 3p 2p 5p",null,null,null,null,null,3,10,1,3,2,5,0,null,1,1,2,0,1]
[null,null,6,"VEMIX",null,null,null,null,58.5,1,"H3","AUGE J.","WALTON W.",null,21700,"X","1p 1p 7p 6p 2p 3p 4p 6p (15) 5p 8p 5p",null,null,null,null,null,1,1,7,6,2,3,4,null,2,1,1,1,0]
[null,null,7,"ADIABATE",null,null,null,null,58.5,2,"F3","BACHELOT T.","WATTEL S.",null,20200,null,"4p 1p 2p 2p 6p 0p",null,null,null,null,null,4,1,2,2,6,10,0,null,1,2,0,1,0]
[null,null,8,"BEAU VALLEY",null,null,null,null,58.5,16,"H3","DEMURO C.","COLLET (S) ROD.",null,17700,null,"0p 6p 6p 3p 0p 6p 1p 5p",null,null,null,null,null,10,6,6,3,10,6,1,null,1,0,1,0,0]
[null,null,9,"MAIS SI",null,null,null,null,58.5,4,"F3","JARNET T.","HEAD (S) F.",null,12250,"X","2p 6p 2p 2p (15) 5p",null,null,null,null,null,2,6,2,2,5,0,0,null,0,3,0,0,1]
[null,null,10,"RAYODOR",null,null,null,null,57.5,11,"H3","BARZALONA M.","PROD'HOMME D.",null,11900,null,"8p 0p 6p 5p 2p 3p (15) 5p 9p",null,null,null,null,null,8,10,6,5,2,3,5,null,0,1,1,0,2]
[null,null,11,"SEE YOU ME",null,null,null,null,57,9,"F3","RISPOLI U.","MONFORT (S) P&F.",null,31050,"A","4p 5p 1p 2p 2p 5p 3p 8p (15) 9p 4p 0p",null,null,null,null,null,4,5,1,2,2,5,3,null,1,2,1,1,2]
[null,null,12,"WONDER HOLLOW",null,null,null,null,57,5,"M3","BENOIST G.","BARBEROT (S) Y.",null,11850,null,"8p 0p 5p 9p 1p 4p 5p 8p",null,null,null,null,null,8,10,5,9,1,4,5,null,1,0,0,1,2]
[null,null,13,"KOSKOROBA",null,null,null,null,56.5,7,"M3","GUYON M.","BERTRAN DE BALANDA (S) J.",null,40550,null,"4p 4p 7p 0p 3p 1p 4p 6p 3p 8p 2p 0p",null,null,null,null,null,4,4,7,10,3,1,4,null,1,0,1,3,0]
[null,null,14,"DJO DRALLIV",null,null,null,null,56.5,12,"M3","HARDOUIN E.","MARTINON C.",null,30500,"A","8p 7p 2p 6p 1p 8p 5p 8p 1p 0p Ap 8p",null,null,null,null,null,8,7,2,6,1,8,5,null,1,1,0,0,1]
[null,null,15,"MILLEPASSI",null,null,null,null,56,17,"H3","CHEMINAUD V.","PLANQUE J.",null,17100,null,"2p 6p 0p 1p 3p 2p (15) 9p",null,null,null,null,null,2,6,10,1,3,2,9,null,1,2,1,0,0]
[null,null,16,"SURPRISED AGAIN",null,null,null,null,55,14,"H3","HAMELIN A.","PERRUCHOT JP.",null,22950,null,"2p 1p 0p 5p 5p 3p 3p 5p 7p 0p 9p 6p",null,null,null,null,null,2,1,10,5,5,3,3,null,1,1,2,0,2]
[null,null,17,"SKY BRIGHT",null,null,null,null,"Non Partant",null,null,null,null,null,null,null,null,null,null,null,null,null,0,0,0,0,0,0,0,null,0,0,0,0,0]
[null,null,18,"ERNESTINE",null,null,null,null,53.5,6,"F3","LEMAITRE A.","LEFEBVRE (S) JM.",null,34600,null,"7p 0p 2p 3p 0p 1p 7p 1p 5p 5p 6p 5p",null,null,null,null,null,7,10,2,3,10,1,7,null,1,1,1,0,0]
[null,null,null,null,null,null,null,null,null,null,null,null,null,null,null,null,null,null,null,null,null,null,null,null,null,null,null,null,null,null,"","","","",""]
[null,null,null,null,null,null,null,null,null,null,null,null,null,null,null,null,null,null,null,null,null,null,null,null,null,null,null,null,null,null,"","","","",""]

{"sheet":"WebQuery","index":2,"n_rows":158,"n_cols":13,"rows_kept":158,"cut":false,"hidden":true,"merged":[[118,4,118,12],[24,4,24,12],[38,4,38,12]]}
[null,"AUTEUIL - Réunion 1 - Dimanche 27 Novembre 2016"]
[]
[null,"N°","Discipline","Nom","Descriptif","Départ",null,"PMU / PMH"]
[null,"Course 1","Obs","PRIX LE GOURZY1","Haies - A Réclamer - 3 ans - 3500 mètres","12h27",null,"PMU"]
[null,"Course 2","Obs","PRIX FRANCOIS DE PONCINS2","Haies - Listed - 4 ans - 3600 mètres","13h05",null,"PMU"]
[null,"Course 3","Obs","PRIX MORGEX3","Steeple - Groupe 3 - 4 ans - 4300 mètres","13h35",null,"PMU"]
[null,"Course 4","Obs","PRIX FIFRELET4","Haies - Handicap Listed - 3 ans - 3600 mètres - Ref: +07","14h05",null,"PMU"]
[null,"Course 5","Obs","PRIX GEORGES COURTOIS5","Steeple - Groupe 2 - 5 ans et Plus - 4400 mètres","14h35",null,"PMU"]
[null,"Course 6","Obs","PRIX LE PARISIEN (PRIX JEAN LAUMAIN)6","Steeple - Handicap - 5 ans et Plus - 4400 mètres - Ref: +07","15h15","Q+","PMU"]
[null,"Course 7","Obs","PRIX ANDRE MICHEL7","Haies - femelles - Groupe 3 - 4 ans et 5 - 3600 mètres","15h50",null,"PMU"]
[null,"Course 8","Obs","PRIX NUPSALA8","Steeple - 4 ans - 4300 mètres","16h23",null,"PMU"]
[]
[null,"Course n°1 - PRIX LE GOURZY"]
[null,"Haies - A Réclamer - 3 ans - 3500 mètres - départ vers 12h27"]
[null,"A RECLAMER , HAIES, 3.500 mètres- Pour tous poulains et pouliches de 3 ans, mis à réclamer au minimum pour 12.000, avec prix de réclamation supérieurs de 2.000 en 2.000. Poids : 68 k. Surcharges accumulées : 1 k. par 2.000 pour les prix de réclamation supérieurs à 12.000. En outre, tout poulain ou pouliche ayant, en courses de haies, reçu une allocation de 10.000 portera 2 k. plusieurs allocations de 10.000, 4 k. Les Apprentis, Jeunes Jockeys et Jockeys n'ayant pas gagné quarante courses recevront 4 k"]
[null,"Allocations : 12000 6000 3500 2375 1125"]
[null,"SimpleCoupléTrio"]
[]
[null,"N°","Cheval",null,"Poids","Corde","S/A","Jockey","Entraîneur","Record","Gain","Oeill.","Dernières performances"]
[null,1,"YOUMSHINE","casaque",73,0,"H3","CHEVILLARD T.","LENOGUE P.",null,38945,"X","1h 2h 2h 2h 4h 2h 6h 5h 5h 6h 7h 7p"]
[null,2,"BURDIGALA","casaque",72,0,"H3","FARCINADE M.","BUTEL MME P.",null,5030,"A","6s 3h 8h 4h 8p 5p (15) 0p 4p 2p 2p 5p 3p"]
[null,3,"HISPANIQUE","casaque",71,0,"H3","MAYEUR R.","CHEREL G. (E1)",null,null,null,"0h Ah"]
[null,4,"LOUP ROYAL","casaque",70,0,"H3","NATTIEZ J.","LENOGUE P.",null,17100,null,"9h 6h 8h 6p 4p 5p 5p 0p 2p 1p 0p (15) 5p"]
[null,5,"CETAVOIR","casaque",70,0,"H3","MERIENNE A.","CHEREL G. (E1)",null,7710,"A","2h 4h 7h Th"]
[null,6,"DJAC DE LARCHAMP","casaque","Non Partant"]
[null,7,"STYLISH CAT","casaque",66,0,"F3","GIRON J.","ROLLAND (S) M.",null,18000,null,"2h 3h 0h 3h 1h 0h 7p 5p 3p 7p 3p"]
[null,8,"DOGRA MAGRA","casaque",66,0,"F3","LUCAS H.","LEENDERS (S) E&G.",null,810,"A","Ts 5s Dp 2p Ah"]
[]
[null,"Course n°2 - PRIX FRANCOIS DE PONCINS"]
[null,"Haies - Listed - 4 ans - 3600 mètres - départ vers 13h05"]
[null,"COURSE A CONDITIONS , HAIES, 3.600 mètres- Pour tous poulains et pouliches de 4 ans, n'ayant pas, cette année, reçu 50.000 en courses de haies (victoires et places). Poids : 66 k. Surcharges accumulées pour les sommes reçues en courses de haies(victoires et places) : 1 k. par 18.000 cette année et par 42.000 l'année dernière."]
[null,"Allocations : 40800 20400 11900 8075 3825"]
[null,"Simple"]
[]
[null,"N°","Cheval",null,"Poids","Corde","S/A","Jockey","Entraîneur","Record","Gain","Oeill.","Dernières performances"]
[null,1,"CLOS DU CHENET","casaque",68,0,"H4","LECORDIER A.","GALLORINI MLLE I.",null,77805,null,"5s 1s 4h 2h 9h 1h (15) 5h 3h 2h 0h"]
[null,2,"HOLLYSTER","casaque",67,0,"H4","GASNIER A.","DERAT G.",null,19680,null,"0h 1h 1h 3p 2h 3p 0p 9p 1p 0p 2p 9p"]
[null,3,"SABLE GRIS","casaque",67,0,"H4","REGAIRAZ M.","BRESSOU D.",null,52765,null,"7h 5h 3h (15) 3h 1h Th Th 2p 3p"]
[null,4,"FRENCH KISS DU PECOS","casaque","Non Partant"]
[null,5,"CORAZONES","casaque",67,0,"H4","RICOU J.","COTTIN (S) FM.",null,117600,null,"2s 1s 2s 7s 1h 2s 1s 1h (15) 7p 2h Ah 8p"]
[null,6,"CAIMAN LAND","casaque",67,0,"H4","CHARRON J.","PELTIER PH.",null,40800,null,"1s 1s 1h 5p (15) 4p 2p"]
[null,7,"BIG BOWL","casaque",67,0,"M4","PLOUGANOU J.","CHEREL G.",null,37870,null,"Ah Th 5h 5h 4h 2h 4h (15) 3h 0p 0p 1p 0p"]
[]
[null,"Course n°3 - PRIX MORGEX"]
[null,"Steeple - Groupe 3 - 4 ans - 4300 mètres - départ vers 13h35"]
[null,"GROUPE III , STEEPLE-CHASE, 4.300 mètres- Pour tous poulains et pouliches de 4 ans. Poids : 66 k. Surcharges accumulées jusqu'à concurrence de 4 k. pour les sommes reçues en steeple-chase (victoires et places) : 1 k. par 30.000 cette année et par75.000 l'année dernière. Un souvenir sera offert au propriétaire du cheval gagnant par FRANCE GALOP."]
[null,"Allocations : 69750 34100 20150 13950 7750 5425 3875"]
[null,"SimpleCoupléTrio2 sur 4Tiercé ClassicMulti"]
[]
[null,"N°","Cheval",null,"Poids","Corde","S/A","Jockey","Entraîneur","Record","Gain","Oeill.","Dernières performances"]
[null,1,"PUNCH NANTAIS","casaque",70,0,"H4","LESTRADE B.","MACAIRE (S) G.",null,479655,"A","Ts 6s 6s 1s 2s 1s 5s (15) 1s 2s 1s 4h 1h"]
[null,2,"ROI MAGE","casaque",70,0,"H4","GUEGUEN T.","NICOLLE F.",null,241515,null,"4s Th Ts 5s 2s 4s 3s (15) 3s 3s 5h 2h 1s"]
[null,3,"CHAHUTEUR","casaque",68,0,"H4","NABET K.","MACAIRE (S) G.",null,116240,null,"1s 2h 4p 2p 1s 3s 3s 1s (15) 1h 3s 2h 5p"]
[null,4,"SAINT POURSAIN","casaque",68,0,"H4","RE G.","CHEREL G.",null,165010,"A","1h 1h Th 1h 8s 4s 5s 4s 3s 3s 1s (15) 3s"]
[null,5,"POLY GRANDCHAMP","casaque",68,0,"H4","DUCHENE A.","NICOLLE F. (E1)",null,102160,"A","5s 3s 2s 1s 2s 1s (15) 4s 3h 3h 1h"]
[null,6,"GALOP MARIN","casaque",67,0,"H4","REGAIRAZ M.","BRESSOU D. (E1)",null,89390,null,"8s 8s 5s 1s 3s 6s (15) 8h 1h 3h 5p"]
[null,7,"SAINT XAVIER","casaque",67,0,"H4","DE GILES F.","CLAYEUX (S) E. (E1)",null,69425,"A","3s 3s 1s 7h As 6s 3s 3s 5h (15) 2h 6h 3h"]
[null,8,"COBRA DE LARRE","casaque",67,0,"H4","CHAZELLE E.","BAUDRON (S) L.",null,60240,null,"2s 1s 6s 6s 8s Ts 1s (15) 2s 7h 6h"]
[null,9,"COASTALINA","casaque",66,0,"F4","JOUIN O.","QUINTON (S) P. (E1)",null,110500,null,"2s 2s 6s 1s 7s 4h 8h (15) 1h 8h 3h"]
[null,10,"PERFECT IMPULSE","casaque",65,0,"F4","CARROUX M.","CHAILLE-CHAILLE A.",null,129275,null,"6h 1s 4h Ah 2h 1s (15) 4h 2h 1h"]
[]
[null,"Course n°4 - PRIX FIFRELET"]
[null,"Haies - Handicap Listed - 3 ans - 3600 mètres - Ref: +07 - départ vers 14h05"]
[null,"HANDICAP, Réf. +070 , HAIES, 3.600 mètres- Pour tous poulains et pouliches de 3 ans , ayant, lors de l'une de leurs six dernières courses en obstacles, soit été classés dans les sept premiers d'une course ayant servi de support à des paris enregistrés sur le plan national, soit ayant reçu une allocation de 7.500, soit été classés dans les trois premiers d'un prix (à réclamer excepté) couru sur un hippodrome de 1ère catégorie.La référence de cette épreuve sera éventuellement remontée à la déclaration des partants probables, afin que le poids le plus élevé soit fixé à 69 k."]
[null,"Allocations : 55200 27600 16100 10925 5175"]
[null,"SimpleCoupléTrio2 sur 4Tiercé ClassicMulti"]
[]
[null,"N°","Cheval",null,"Poids","Corde","S/A","Jockey","Entraîneur","Record","Gain","Oeill.","Dernières performances"]
[null,1,"OKAY SENAM","casaque",69,0,"H3","LESTRADE B.","MACAIRE (S) G.",null,64050,null,"5s 2s 3s 4h 1h 4h"]
[null,2,"SQUARE MARCEAU","casaque",68,0,"H3","REGAIRAZ M.","BRESSOU D.",null,11520,null,"2h Th 6h 6h"]
[null,3,"PYROMANE","casaque",67,0,"H3","BEAUNEZ JL.","BUTEL MME P.",null,43865,null,"3h 4h 4h 3h 3h 4h 1h 5h 3h 5h"]
[null,4,"SOLVEDO","casaque",67,0,"H3","PAILLARD S.","CHEREL G.",null,18240,null,"2h 3h 0h 9p"]
[null,5,"TREIZOR DU PILORI","casaque","65.5",0,"H3","MESCAM D.","COTTIN (S) FM. (E1)",null,12720,null,"4h 9h 5h Th 2h"]
[null,6,"HURKHAN","casaque",65,0,"H3","MASURE G.","NICOLLE F. (E2)",null,17110,null,"4h 5h 3h 3h"]
[null,7,"FUTBOLISTO","casaque",65,0,"H3","RICOU J.","SEROR M.",null,15360,null,"8h 0h 0h 8h Th 1h"]
[null,8,"LUCKY RUBY","casaque",64,0,"H3","PHILIPPERON L.","COLLET (S) ROB.",null,20160,null,"2h 7h 5h 7h 7h 6h"]
[null,9,"BERGERAC","casaque",64,0,"H3","DE CHITRAY A.","CHEREL G.",null,9220,null,"5h 6h 3h 4h 5h 4p"]
[null,10,"YELLOWSTONE CAY","casaque",63,0,"F3","LEMAGNEN T.","CHAILLE-CHAILLE A.",null,32515,"A","1h 3s 1h 5h 1h 5h 2h 3h 2h Ah 8p 7p"]
[null,11,"HELL'S QUEEN","casaque",63,0,"F3","DELMARES M.","COTTIN (S) FM. (E1)",null,11040,null,"1h 8h 0h 0h"]
[null,12,"SUDISTE","casaque",63,0,"H3","CHEVILLARD T.","CHEREL G. (E2)",null,2160,null,"5h Ah Th 0p"]
[]
[null,"Course n°5 - PRIX GEORGES COURTOIS"]
[null,"Steeple - Groupe 2 - 5 ans et Plus - 4400 mètres - départ vers 14h35"]
[null,"GROUPE II , STEEPLE-CHASE, 4.400 mètres- Pour tous chevaux de 5 ans et au-dessus. Poids : 5 ans, 64 k. 6 ans et au-dessus, 66 k. Surcharges accumulées jusqu'à concurrence de 4 k. pour les 5 ans et de 6 k. pour les 6 ans et au-dessus pour les sommes reçues en steeple-chase (victoires et places) : 1 k. par 65.000 cette année et par 155.000 l'année dernière. Un souvenir sera offert au propriétaire, à l'entraîneur et au jockey du cheval gagnant par FRANCEGALOP ."]
[null,"Allocations : 108000 52800 31200 21600 12000 8400 6000"]
[null,"SimpleCoupléTrio2 sur 4Tiercé ClassicMulti"]
[]
[null,"N°","Cheval",null,"Poids","Corde","S/A","Jockey","Entraîneur","Record","Gain","Oeill.","Dernières performances"]
[null,1,"STORM OF SAINTLY","casaque",72,0,"H7","DUCHENE A.","MACAIRE (S) G.",null,1590590,null,"3s As 2h 1s 2s 1s 1s 1h (15) 1h Th (14) 1s 1s"]
[null,2,"KELTHOMAS","casaque",68,0,"H7","CHARRON J.","BAUDRELLE JM.",null,351930,null,"3h 1s 1s 7s 2s (15) 1s 8s Ah 3s 2s 3h 1h"]
[null,3,"JEMY BAIE","casaque",68,0,"H7","GASNIER A.","LE CLERC (S) A.",null,466810,null,"0h Ah 3s 6s 1s As (15) 2s Ts 3s 1s Ts 4s"]
[null,4,"VALTOR","casaque",68,0,"H7","NABET K.","LERAY (S) E.",null,347915,null,"1s 6s 7p 1s 3s 4s 3s 0h (15) 8s 2s 5s 7s"]
[null,5,"SHANNON ROCK","casaque",67,0,"H10","COLAS S.","GALLORINI (S) JP.",null,1690790,"X","5s 5s 3h 8s 5s 4s (15) 4s 5s 2s 3s 8h (14) 6s"]
[null,6,"BEL LA VIE","casaque",67,0,"H10","LESTRADE B.","MACAIRE (S) G. (E1)",null,1545635,null,"2s 8h 4h (15) 4h 1s As 2s 1s 2s 2h (13) Ah 1s"]
[null,7,"LACHLAN BRIDGE","casaque",67,0,"H8","DE CHITRAY A.","CHEREL G.",null,485555,null,"1s 3s 6s Dh 3h 8h 6s (15) Rs 0s 2h 1h 4s"]
[null,8,"DOS SANTOS","casaque",66,0,"H6","PLOUGANOU J.","CLAYEUX (S) E. (E1)",null,311935,"X","2s 3s 6h (15) 4s 8h 6h 4h 3h 1h 2h 2h (14) 3h"]
[null,9,"DJAGBLE","casaque",65,0,"H5","LECORDIER A.","BERTRAN DE BALANDA (S) J.",null,249520,null,"7s 6s 3s 3s 4s 4s 3h (15) 2s 7s 9s 1s Ts"]
[null,10,"BIPOLAIRE","casaque",64,0,"H5","GUEGUEN T.","NICOLLE F.",null,167555,null,"1s 5h 3h (15) 4s 1s 1s 1h (14) 1h 2p 6p 3p 5p"]
[null,11,"BOB AND CO","casaque",64,0,"H5","DE GILES F.","CLAYEUX (S) E. (E1)",null,135340,null,"2s 1s (15) 5s 1s 5h 1s 4h 3h Ah (14) 3p 4p"]
[]
[null,"Course n°6 - PRIX LE PARISIEN (PRIX JEAN LAUMAIN)"]
[null,"Steeple - Handicap - 5 ans et Plus - 4400 mètres - Ref: +07 - départ vers 15h15"]
[null,"HANDICAP, Réf. +070 , STEEPLE-CHASE, 4.400 mètres- Pour tous chevaux de 5 ans et au-dessus , ayant couru depuis le 1er janvier de l'année dernière inclus, et ayant lors de l'une de leurs six dernières courses en obstacles, soit été classés dans lessept premiers d'une course ayant servi de support à des paris enregistrés sur le plan national, soit ayant reçu une allocation de 7.500, soit été classés dans les trois premiers d'un prix (à réclamer excepté) couru sur un hippodrome de 1ère catégorie. La référence applicable dans ce handicap sera + 7. La référence de cette épreuve sera éventuellement remontée à la déclaration des partants probables, afin que le poids le plusélevé soit fixé à 72 k. Des souvenirs seront remis par Monsieur Romain POREE, Journaliste Adjoint au Chef de service du Parisien, au propriétaire, à l'entraîneur, au jockey et au cavalier d'entraînement du"]
[null,"Allocations : 42750 20900 12350 8550 4750 3325 2375"]
[null,"SimpleCoupléTrioTiercéQuartéQuinté2 sur 4Multi"]
[]
[null,"N°","Cheval",null,"Poids","Corde","S/A","Jockey","Entraîneur","Record","Gain","Oeill.","Dernières performances"]
[null,1,"BRUT IMPERIAL","casaque",72,0,"H5","PLOUGANOU J.","SOURDEAU DE BEAUREGARD (S) D.",null,114320,null,"1s Ah 1h 3h (15) 2h 8h 2h 2h (14) 1h"]
[null,2,"PINSON DU RHEU","casaque",71,0,"H5","BEAURAIN T.","CHEREL G.",null,127110,null,"Ts 4s 3s (15) 7s As As 4s 6s 1s 1s 3h 2h"]
[null,3,"ULTRA LUCKY","casaque",71,0,"H8","JOUIN O.","AUBREE E.",null,403250,null,"1s 4s 1s 5h Th Ts 6s 0h 4h (14) 3h 2s 1s"]
[null,4,"BAZILLE","casaque",67,0,"H5","MASURE G.","NICOLLE F.",null,89920,null,"1s 1h (15) 2s Ts 2s 1s 6h Th 4h (14) 7p 5p"]
[null,5,"BRANLE BAS","casaque",66,0,"H5","LESTRADE B.","DE LAGENESTE N.",null,79290,"A","3h As As 2h 1s 1s 2s 5h 9p (14) 2h 1p 1h"]
[null,6,"SIERRA NEVADA","casaque",66,0,"F6","REGAIRAZ M.","DELAROCHE MLLE S.",null,216855,null,"7s As Ah 1h 7s 8s 1s 0s 5s 4s 0s (15) 6h"]
[null,7,"VOL DE BRION","casaque",65,0,"H7","PHILIPPERON L.","CHAIGNON GIL. (E1)",null,157010,"A","3s Ts 7s 7s 2s 4s 1s 6s 2s (15) 5s 2s 6s"]
[null,8,"BORICE","casaque",65,0,"H5","GUEGUEN T.","NICOLLE F.",null,60150,"A","1s 2s 2s 2s 1s 5p 5h 3h (14) 2p 7p"]
[null,9,"AL ROC","casaque",64,0,"H5","REY J.","WINDRIF D.",null,110780,null,"5h 0h Ts 2s 1h (15) 3s 4s 3s 2h 1s 6s 6h"]
[null,10,"ARGENTIER","casaque",64,0,"H6","NABET K.","LERAY (S) E.",null,78695,null,"0s Ah 8p 9s Ts 1h 3s 1s Ts (15) 4s 3h 0p"]
[null,11,"SISTADENN","casaque",64,0,"F8","LECOURT Y.","MERIENNE J.",null,216565,null,"2s 4s 3s 7h 3h 1h (15) 3h 3s 2h Ah (14) 6h 1s"]
[null,12,"CHEB DE KERVINIOU","casaque","Non Partant"]
[null,13,"HAWK THE TALK","casaque",62,0,"H8","RICOU J.","COTTIN (S) FM.",null,263760,"A","0h 4s 2s 3s As 6s 9s 5s 4s 0s 7s 5s"]
[null,14,"EAUX FORTES","casaque",62,0,"F7","BURELLER E.","AUBERT C.",null,156080,"A","3s 4s 1h 2s 8s 4s 4s 4h 4s 2s 5s (14) Ts"]
[null,15,"VAUBAN LAUGIL","casaque",62,0,"H7","LECORDIER A.","AUBERT C.",null,179965,null,"2s 1s 4s 0s 0s As 0h (15) Dh 0s 5s 9h (14) 3s"]
[null,16,"BARON DU SEUIL","casaque",62,0,"H5","GILLET T.","BIETOLINI G.",null,101280,null,"1s 6s 2s 7s 9h 8s 0s 0h 8s 3h As (15) 7h"]
[null,17,"ULTRANET","casaque",62,0,"H8","UBEDA D.","CHAIGNON GIL. (E1)",null,108935,"X","6s 5s 4s 6s 6s 1s 2s (15) 7s 3s 6s 8s 9s"]
[]
[null,"Course n°7 - PRIX ANDRE MICHEL"]
[null,"Haies - femelles - Groupe 3 - 4 ans et 5 - 3600 mètres - départ vers 15h50"]
[null,"GROUPE III , HAIES, 3.600 mètres- Pour juments de 4 et 5 ans , n'ayant pas, en courses à obstacles, cette année, reçu une allocation de 100.000 . Poids : 4 ans, 65 k. 5 ans, 67 k. Surcharges accumulées et limitées à 4 k. pour les sommes reçues encourses de haies (victoires et places) : 1 k. par 25.000 cette année et par 60.000 l'année dernière. Un souvenir sera remis par Madame Annie MICHEL, au propriétaire de la jument gagnante."]
[null,"Allocations : 60750 29700 17550 12150 6750 4725 3375"]
[null,"SimpleCoupléTrio2 sur 4Tiercé ClassicMulti"]
[]
[null,"N°","Cheval",null,"Poids","Corde","S/A","Jockey","Entraîneur","Record","Gain","Oeill.","Dernières performances"]
[null,1,"CORSCIA","casaque",70,0,"F5","LESTRADE B.","MACAIRE (S) G.",null,358625,null,"1s 1s 1h 4s 2h 5h (15) 1s 1s 1h 1s 2s 1s"]
[null,2,"KADA RIQUE","casaque",70,0,"F5","LECORDIER A.","LE GAL R.",null,272015,null,"Ts 3s 1s 1h 4h 1h 2h (15) 3h 0p (14) 1h 1h 1h"]
[null,3,"L'ESPIGUETTE","casaque",69,0,"F5","CHAZELLE E.","SCANDELLA C.",null,165965,null,"0h 3h 5s 2h 3h 2h 1h (15) 6h Ts 7s 2s 1s"]
[null,4,"CASABLANCA MIX","casaque",68,0,"F4","DE GILES F.","CLAYEUX (S) E.",null,80690,"A","3h 1h 5p 4h 1h 1h (15) 1p 1p 4p 3p"]
[null,5,"YOSILLE","casaque",67,0,"F4","PLOUGANOU J.","BERTRAN DE BALANDA (S) J.",null,140010,"A","1h As 2s 4s 9h 4h 2h (15) 6h 3h 5h 1h 4p"]
[null,6,"KITKATIE","casaque",67,0,"F4","BELLEY MO.","GALLORINI (S) JP.",null,54090,null,"2h 4h 5h 2h 1h 7p (15) 2p 6p 1p 2p 5p"]
[null,7,"CARTE SUR TABLE","casaque",67,0,"F4","BEAURAIN T.","PACAULT MLLE AS.",null,71370,null,"1h 4h 1h 1h (15) 3p 4p"]
[null,8,"PONTE FORTUNE","casaque",67,0,"F4","MASURE G.","NICOLLE F.",null,77235,null,"4h 4h 2h 4h 1h (15) 2h 6p 7p 1p 1p 2p 2p"]
[null,9,"LUCKY FLOWER","casaque",66,0,"F4","PHILIPPERON L.","COLLET (S) ROB.",null,42160,"X","1h 7h 0h Th 8h 0h As 7h (15) 4h 2h 6h 6h"]
[null,10,"TRIANA DU BERLAIS","casaque",66,0,"F4","CARROUX M.","CHAILLE-CHAILLE A.",null,309025,"A","6s 5s 1s 2s 4s 2s Ts 2s (15) 1h 2h 1h 5h"]
[]
[null,"Course n°8 - PRIX NUPSALA"]
[null,"Steeple - 4 ans - 4300 mètres - départ vers 16h23"]
[null,"COURSE A CONDITIONS , STEEPLE-CHASE, 4.300 mètres- Pour poulains entiers, hongres et pouliches de 4 ans , n'étant pas de race Pur Sang, n'ayant pas, en steeple-chase, reçu une allocation de 26.500. Poids : 66 k. Surcharges accumulées pour les sommes reçues en steeple-chase (victoires et places) :1 k. par 12.000."]
[null,"Allocations : 27840 13920 8120 5510 2610"]
[null,"SimpleCoupléTrio"]
[]
[null,"N°","Cheval",null,"Poids","Corde","S/A","Jockey","Entraîneur","Record","Gain","Oeill.","Dernières performances"]
[null,1,"COUSIN GERMAIN","casaque",69,0,"H4","DE CHITRAY A.","CHEREL G. (E1)",null,76600,null,"2s 3s 3s 6s 2s 1h 3h (15) 5h 5h 1p 3p"]
[null,2,"CAFERTITI","casaque",68,0,"H4","RICOU J.","COTTIN (S) FM.",null,27940,null,"3s As As 4s 3s 4s 7s 6h 4h Ah Th 8h"]
[null,3,"CRACK DE REVE","casaque",68,0,"H4","PLOUGANOU J.","CHEREL G.",null,117285,null,"1s 1p 1h 7h 2h 3h 1p (15) 4h 3h 1p 5p"]
[null,4,"CHALUTIER","casaque",67,0,"H4","CHEVILLARD T.","NICOLLE F.",null,24480,null,"2s 4h 1h (15) 8h"]
[null,5,"CARTAPUCE BEY","casaque",67,0,"H4","LEFEBVRE MR C.","LECOIFFIER E.",null,17515,"A","As 6s 2s 5s 7s 3s 4s 5s (15) 0h 0h 3p 5p"]
[null,6,"CACHACA MACALO","casaque",67,0,"F4","CAMUS M.","BOISBRUNET (S) A.",null,62070,null,"6s As As 2s 1h 1h 1s 5s 1s (15) 4h Th 1p"]
[null,7,"CALNUTZ","casaque",66,0,"H4","CHARRON J.","PELTIER PH. (E1)",null,30425,null,"Ts Ts 7s 4s 5h 1h 3p (15) 3p 4p"]
[null,8,"COLOMBIA D'ALENE","casaque",65,0,"F4","NATTIEZ J.","BOISBRUNET (S) A.",null,39375,null,"5s 3s Ts 2s 2h 3h"]